{"text_format":"1","workbook":"xlsx","n_sheets":10,"sheets":["Contents","Front Page","Other Provider Data","Other Provider List","Reference Tables","Multiplier Review","Payments Review","Service Review","Payers","System Data"],"not_rendered":{"charts":0,"images":0,"macros":1,"external_links":0,"defined_names":18,"comments":0,"pivot_tables":0},"unopened":[],"bounds":{"document_bytes":16777216,"sheet_cells":100000,"rows_first":2000,"rows_last":500,"rows_between":2000,"halvings":0,"cell_chars":16384,"cell_head_chars":4096},"cells_cut":0,"cells_raw":0,"read":"whole","date_system":"1900"}

{"sheet":"Contents","index":0,"n_rows":21,"n_cols":3,"rows_kept":21,"cut":false,"hidden":false,"merged":[[0,0,0,2],[1,0,1,2],[14,1,14,2]]}
["Payer Reporting of Relative Price"]
["Table of Contents"]
[]
[null,"Tab Name","Details"]
[null,"Front Page","Summary overview of the Workbook"]
[null,"Other Provider Data","Location for data entry by submitters"]
[null,"Other Provider List","Reference table with Provider Groups and accompanying OrgIDs"]
[null,"Reference Tables","Lookup codes for data entry are provided here"]
[null,"Payments Review","Summary of payments by Physician Group"]
[null,"Multiplier Review","Summary of multipliers by Service Group"]
[null,"Service Review","Summary of Service Groups reported by Provider Group"]
[]
[]
[]
[null,"Workbook Color Key"]
[null,null,"User Data Entry tab"]
[null,null,"Auto-populated Field"]
[null,null,"Reference Materials"]
[null,null,"Summary of Entered Data"]
[null,null,"Identified Error"]
[null,null,"Attention Required"]

{"sheet":"Front Page","index":1,"n_rows":50,"n_cols":9,"rows_kept":50,"cut":false,"hidden":false,"merged":[[33,5,33,6],[33,7,33,8],[32,1,32,8],[0,0,0,1],[1,0,1,1],[8,1,8,2],[22,1,22,2],[17,1,17,2]]}
["Payer Reporting of Relative Price"]
["A. File Overview and Payer Verification"]
[]
[]
[null,"Required Fields *"]
["Contact Name:  *"]
["Contact Email:  *",null,{"$f":"IF(ISBLANK(B7),\"\",IF(AND(RIGHT(B7,3)<>\"org\",RIGHT(B7,3)<>\"com\"),\"ERROR: Please enter a valid email address\",\"\"))","v":""}]
[]
[null,"Table A.1: File Overview"]
[null,"Payer OrgID *",{"$f":"IF(ISBLANK(iPayer),\"\",INDEX(PayersList,iPayer,1))","v":0}]
[null,"Payer Name *",{"$f":"IF(ISBLANK(iPayer),\"\",INDEX(PayersList,iPayer,2))","v":"Select Payer:"}]
[null,"Submission Year *"]
[null,"Data Year *"]
[]
[]
[]
[]
[null,"Table A.2: Data Checks"]
[null,"Other Provider Data Tab",{"$f":"IF(AND('Other Provider Data'!J3=\"\",'Other Provider Data'!K3=\"\",'Other Provider Data'!L3=\"\",'Other Provider Data'!M3=\"\",'Other Provider Data'!N3=\"\",'Other Provider Data'!O3=\"\",'Other Provider Data'!P3=\"\",'Other Provider Data'!Q3=\"\"), \"Please run Data Review prior to submission\", IF((COUNTIF('Other Provider Data'!J:Q,\"*\"&\"ERROR\"&\"*\")>0)=TRUE, \"Errors identified on Other Provider Data Tab, please correct\", \"All entered data is valid\"))","v":"Please run Data Review prior to submission"}]
[null,"Service Review Tab",{"$f":"IF(AND('Other Provider Data'!J3=\"\",'Other Provider Data'!K3=\"\",'Other Provider Data'!L3=\"\",'Other Provider Data'!M3=\"\",'Other Provider Data'!N3=\"\",'Other Provider Data'!O3=\"\",'Other Provider Data'!P3=\"\",'Other Provider Data'!Q3=\"\"), \"Please run Data Review prior to submission\", IF((COUNTIF('Service Review'!G:G,\"*\"&\"ERROR\"&\"*\")>0)=TRUE, \"Errors identified on Service Review, please correct\", \"All entered data is valid\"))","v":"Please run Data Review prior to submission"}]
[]
[]
[null,"Table A.3: Data Review Certifications"]
[null,"Data Tab","Acknowledgement"]
[null,"I acknowledge that I have reviewed the Other Provider Data tab  *"]
[null,"I acknowledge that I have reviewed the Payments Review tab  *"]
[null,"I acknowledge that I have reviewed the Multiplier Review tab  *"]
[null,"I acknowledge that I have reviewed the Service Review tab *"]
[null,"RP Comments"]
[null,"Additional Comments"]
[]
[]
[null,"Table A.4: In-Network Providers"]
[null,null,null,null,null,"Providers",null,"Percent of Payments"]
[null,"Insurance Category","Product Type","Total Payments","Number of Provider Groups","In Network *","Out of Network *","In Network *","Out of Network *"]
[null,null,null,null,{"$f":"IF(B36=\"\",\"\",SUM(--(FREQUENCY(IF(('Other Provider Data'!$N:$N= 'Front Page'!B36)*('Other Provider Data'!$O:$O = 'Front Page'!C36),'Other Provider Data'!A$1:A$2),'Other Provider Data'!A$1:A$2)>0)))","v":""}]
[null,null,null,null,{"$f":"IF(B37=\"\",\"\",SUM(--(FREQUENCY(IF(('Other Provider Data'!$N:$N= 'Front Page'!B37)*('Other Provider Data'!$O:$O = 'Front Page'!C37),'Other Provider Data'!A$1:A$2),'Other Provider Data'!A$1:A$2)>0)))","v":""}]
[null,null,null,null,{"$f":"IF(B38=\"\",\"\",SUM(--(FREQUENCY(IF(('Other Provider Data'!$N:$N= 'Front Page'!B38)*('Other Provider Data'!$O:$O = 'Front Page'!C38),'Other Provider Data'!A$1:A$2),'Other Provider Data'!A$1:A$2)>0)))","v":""}]
[null,null,null,null,{"$f":"IF(B39=\"\",\"\",SUM(--(FREQUENCY(IF(('Other Provider Data'!$N:$N= 'Front Page'!B39)*('Other Provider Data'!$O:$O = 'Front Page'!C39),'Other Provider Data'!A$1:A$2),'Other Provider Data'!A$1:A$2)>0)))","v":""}]
[null,null,null,null,{"$f":"IF(B40=\"\",\"\",SUM(--(FREQUENCY(IF(('Other Provider Data'!$N:$N= 'Front Page'!B40)*('Other Provider Data'!$O:$O = 'Front Page'!C40),'Other Provider Data'!A$1:A$2),'Other Provider Data'!A$1:A$2)>0)))","v":""}]
[null,null,null,null,{"$f":"IF(B41=\"\",\"\",SUM(--(FREQUENCY(IF(('Other Provider Data'!$N:$N= 'Front Page'!B41)*('Other Provider Data'!$O:$O = 'Front Page'!C41),'Other Provider Data'!A$1:A$2),'Other Provider Data'!A$1:A$2)>0)))","v":""}]
[null,null,null,null,{"$f":"IF(B42=\"\",\"\",SUM(--(FREQUENCY(IF(('Other Provider Data'!$N:$N= 'Front Page'!B42)*('Other Provider Data'!$O:$O = 'Front Page'!C42),'Other Provider Data'!A$1:A$2),'Other Provider Data'!A$1:A$2)>0)))","v":""}]
[null,null,null,null,{"$f":"IF(B43=\"\",\"\",SUM(--(FREQUENCY(IF(('Other Provider Data'!$N:$N= 'Front Page'!B43)*('Other Provider Data'!$O:$O = 'Front Page'!C43),'Other Provider Data'!A$1:A$2),'Other Provider Data'!A$1:A$2)>0)))","v":""}]
[null,null,null,null,{"$f":"IF(B44=\"\",\"\",SUM(--(FREQUENCY(IF(('Other Provider Data'!$N:$N= 'Front Page'!B44)*('Other Provider Data'!$O:$O = 'Front Page'!C44),'Other Provider Data'!A$1:A$2),'Other Provider Data'!A$1:A$2)>0)))","v":""}]
[null,null,null,null,{"$f":"IF(B45=\"\",\"\",SUM(--(FREQUENCY(IF(('Other Provider Data'!$N:$N= 'Front Page'!B45)*('Other Provider Data'!$O:$O = 'Front Page'!C45),'Other Provider Data'!A$1:A$2),'Other Provider Data'!A$1:A$2)>0)))","v":""}]
[null,null,null,null,{"$f":"IF(B46=\"\",\"\",SUM(--(FREQUENCY(IF(('Other Provider Data'!$N:$N= 'Front Page'!B46)*('Other Provider Data'!$O:$O = 'Front Page'!C46),'Other Provider Data'!A$1:A$2),'Other Provider Data'!A$1:A$2)>0)))","v":""}]
[null,null,null,null,{"$f":"IF(B47=\"\",\"\",SUM(--(FREQUENCY(IF(('Other Provider Data'!$N:$N= 'Front Page'!B47)*('Other Provider Data'!$O:$O = 'Front Page'!C47),'Other Provider Data'!A$1:A$2),'Other Provider Data'!A$1:A$2)>0)))","v":""}]
[null,null,null,null,{"$f":"IF(B48=\"\",\"\",SUM(--(FREQUENCY(IF(('Other Provider Data'!$N:$N= 'Front Page'!B48)*('Other Provider Data'!$O:$O = 'Front Page'!C48),'Other Provider Data'!A$1:A$2),'Other Provider Data'!A$1:A$2)>0)))","v":""}]
[null,null,null,null,{"$f":"IF(B49=\"\",\"\",SUM(--(FREQUENCY(IF(('Other Provider Data'!$N:$N= 'Front Page'!B49)*('Other Provider Data'!$O:$O = 'Front Page'!C49),'Other Provider Data'!A$1:A$2),'Other Provider Data'!A$1:A$2)>0)))","v":""}]
[null,null,null,null,{"$f":"IF(B50=\"\",\"\",SUM(--(FREQUENCY(IF(('Other Provider Data'!$N:$N= 'Front Page'!B50)*('Other Provider Data'!$O:$O = 'Front Page'!C50),'Other Provider Data'!A$1:A$2),'Other Provider Data'!A$1:A$2)>0)))","v":""}]

{"sheet":"Other Provider Data","index":2,"n_rows":1,"n_cols":17,"rows_kept":1,"cut":false,"hidden":false,"merged":[]}
["ProviderGroupOrgID","LocalPracticeOrgID","InsuranceCategoryCode","ProductTypeCode","Service","MultiplierIndicator","Multiplier","ClaimsPayments","NonClaimsPayments","TotalPayments","ProviderGroup","LocalPracticeGroup","OtherProviderType","InsuranceCategory","ProductType","MultiplierType","DataChecks"]

{"sheet":"Other Provider List","index":3,"n_rows":1071,"n_cols":8,"rows_kept":1071,"cut":false,"hidden":false,"merged":[]}
["OrgID","Provider","Organization Type",null,null,null,"Unique","All"]
[9822,"Advanced Eye Surgery Center","Ambulatory Surgical Centers",null,null,null,{"$f":"COUNT(_xlfn.UNIQUE(A:A))","v":1070},{"$f":"COUNT(A:A)","v":1070}]
[999901,"Ambulatory Surgical Centers","Ambulatory Surgical Centers"]
[286,"ARC Worcester Center ","Ambulatory Surgical Centers"]
[20013,"Azzouni & Babameto Oral Surgeons","Ambulatory Surgical Centers"]
[268,"Boston Center for Ambulatory Surgery","Ambulatory Surgical Centers"]
[7243,"Boston Endoscopy Center","Ambulatory Surgical Centers"]
[269,"Boston Eye Surgery and Laser Center - Boston","Ambulatory Surgical Centers"]
[12054,"Boston Eye Surgery and Laser Center - Waltham","Ambulatory Surgical Centers"]
[11895,"Boston IVF","Ambulatory Surgical Centers"]
[8086,"Boston Outpatient Surgical Suites","Ambulatory Surgical Centers"]
[10722,"Boston Surgery Center","Ambulatory Surgical Centers"]
[285,"Boston University Eye Associates Surgery and Laser Center ","Ambulatory Surgical Centers"]
[276,"Candescent Eye Health Surigical Center (Greater New Bedford Surgicenter)","Ambulatory Surgical Centers"]
[8884,"Cape and Islands Endoscopy Center","Ambulatory Surgical Centers"]
[7236,"Cape Cod Ambulatory Surgical Center","Ambulatory Surgical Centers"]
[7235,"Cape Cod Eye Surgery and Laser Center","Ambulatory Surgical Centers"]
[271,"Cataract and Laser Center","Ambulatory Surgical Centers"]
[7238,"Cataract and Laser Center Associates - Adams","Ambulatory Surgical Centers"]
[7237,"Cataract and Laser Center Central ","Ambulatory Surgical Centers"]
[7775,"Cataract and Laser Center of the North Shore","Ambulatory Surgical Centers"]
[8698,"Central Massachusetts Ambulatory Endoscopy Center","Ambulatory Surgical Centers"]
[10692,"Charles River Endoscopy","Ambulatory Surgical Centers"]
[272,"Commonwealth Endoscopy Center","Ambulatory Surgical Centers"]
[12415,"D'Ambrosio Eye Care","Ambulatory Surgical Centers"]
[9593,"DHA Endoscopy","Ambulatory Surgical Centers"]
[8713,"East Bay Surgery Center","Ambulatory Surgical Centers"]
[11243,"East Pond Enterprises","Ambulatory Surgical Centers"]
[10721,"Eastern Massachusetts Surgery Center","Ambulatory Surgical Centers"]
[274,"Eye Institute of the Merrimack Valley","Ambulatory Surgical Centers"]
[10891,"Greater Springfield Surgery Center  ","Ambulatory Surgical Centers"]
[273,"Hyannis Ear Nose and Throat Associates","Ambulatory Surgical Centers"]
[11232,"Hyde Park Pain Management","Ambulatory Surgical Centers"]
[10431,"Mass General / North Shore Center for Outpatient Care","Ambulatory Surgical Centers"]
[11540,"Merrimack Valley Endoscopy Center","Ambulatory Surgical Centers"]
[10729,"MGH Radiation Oncology at Newton-Wellesley Hospital","Ambulatory Surgical Centers"]
[8978,"Middlesex Digestive Health and Endoscopy Center","Ambulatory Surgical Centers"]
[20523,"NATICK SURGERY CENTER LLC DBA N","Ambulatory Surgical Centers"]
[20598,"Natick Surgery Center, LLC","Ambulatory Surgical Centers"]
[9673,"New England Ambulatory SurgiCenter - Cambridge","Ambulatory Surgical Centers"]
[278,"New England Eye Surgical Center - Beverly","Ambulatory Surgical Centers"]
[8717,"New England Pain Care","Ambulatory Surgical Centers"]
[12014,"New England Surgery Center","Ambulatory Surgical Centers"]
[9499,"New England Surgical Center for Outpatient Endoscopy","Ambulatory Surgical Centers"]
[20014,"Newburyport Oral Surgery, Inc","Ambulatory Surgical Centers"]
[7245,"North Shore Cataract and Laser Center","Ambulatory Surgical Centers"]
[9379,"North Suburban Orthopaedics Associates","Ambulatory Surgical Centers"]
[7234,"Northeast Ambulatory Center","Ambulatory Surgical Centers"]
[9594,"Northeast Endoscopy Center","Ambulatory Surgical Centers"]
[8695,"Orthopaedic Surgical Center of the North Shore","Ambulatory Surgical Centers"]
[12657,"Pilgrim Independent Physician Association (PIPA)","Ambulatory Surgical Centers"]
[8082,"Pioneer Valley SurgiCenter","Ambulatory Surgical Centers"]
[20210,"Plymouth Ears Nose and Throat","Ambulatory Surgical Centers"]
[280,"Plymouth Laser and Surgical Center","Ambulatory Surgical Centers"]
[9776,"PRIMA CARE PC","Ambulatory Surgical Centers"]
[281,"Same Day SurgiCare of New England","Ambulatory Surgical Centers"]
[282,"South Shore Endoscopy Center","Ambulatory Surgical Centers"]
[10718,"Spine Institute of New England","Ambulatory Surgical Centers"]
[12000,"Surgical Eye Experts of New England","Ambulatory Surgical Centers"]
[270,"The Cataract and Laser Center West","Ambulatory Surgical Centers"]
[10726,"The Cataract Surgery Center of Milford","Ambulatory Surgical Centers"]
[20023,"The Endoscopy Center - Reliant Medical Group","Ambulatory Surgical Centers"]
[19861,"The Surgery Center of Shrewbury","Ambulatory Surgical Centers"]
[12990,"Tufts University School of Dental Medicine Clinic","Ambulatory Surgical Centers"]
[4474,"UMass Memorial EMS","Ambulatory Surgical Centers"]
[19862,"UMS Management Services LLC","Ambulatory Surgical Centers"]
[8024,"Valley Medical Group","Ambulatory Surgical Centers"]
[11864,"West Bridgewater MA Endoscopy Asc","Ambulatory Surgical Centers"]
[8987,"West Suburban Eye Surgery Center","Ambulatory Surgical Centers"]
[8688,"Weymouth Endoscopy","Ambulatory Surgical Centers"]
[11581,"Worcester Surgical Center","Ambulatory Surgical Centers"]
[8392,"Associates for Human Services, Inc","Community Health Centers"]
[3258,"Baystate Brightwood Health Center","Community Health Centers"]
[11379,"Baystate High Street Health Center - Adult Medicine","Community Health Centers"]
[7835,"Baystate Mason Square Neighborhood Health Center","Community Health Centers"]
[12954,"BIOMEDICAL APPLICATIONS OF MASSACHUSETTS, INC.","Community Health Centers"]
[15,"Boston Health Care for the Homeless Program","Community Health Centers"]
[11,"Bowdoin Street Health Center","Community Health Centers"]
[26,"Brockton Neighborhood Health Center","Community Health Centers"]
[23,"Brookside Community Health Center","Community Health Centers"]
[34,"Cambridge Health Alliance - Cambridge Family Health","Community Health Centers"]
[29,"Cambridge Health Alliance (CHA) - Cambridge Family Health North","Community Health Centers"]
[3280,"Cambridge Public Health Commission","Community Health Centers"]
[125,"Caring Health Center","Community Health Centers"]
[80,"Charles River Community Health","Community Health Centers"]
[4155,"CHP Health Center","Community Health Centers"]
[17,"Codman Square Health Center","Community Health Centers"]
[6798,"Community Health Center of Cape Cod","Community Health Centers"]
[3104,"Community Health Center of Franklin County","Community Health Centers"]
[999902,"Community Health Centers","Community Health Centers"]
[4051,"Community Health Connections - Fitchburg","Community Health Centers"]
[9416,"Community Health Programs, Inc.","Community Health Centers"]
[12285,"DaVita Dialysis - Northeast Cambridge","Community Health Centers"]
[12288,"DaVita Dialysis - Wellington Circle","Community Health Centers"]
[12957,"DaVita Salem Northeast Dialysis","Community Health Centers"]
[7721,"Dialysis Clinic, Inc.","Community Health Centers"]
[55,"Dimock Community Health Center","Community Health Centers"]
[18,"Dorchester House Multi-Service Center","Community Health Centers"]
[19853,"DotHouse Health","Community Health Centers"]
[1472,"Duffy Health Center","Community Health Centers"]
[19,"East Boston Neighborhood Health Center","Community Health Centers"]
[63,"Edward M. Kennedy Community Health Center","Community Health Centers"]
[11401,"Everett Family Health Center","Community Health Centers"]
[58,"Family Health Center of Worcester","Community Health Centers"]
[60,"Fenway Community Health Center","Community Health Centers"]
[19940,"Fresenius Kidney Care Hampshire County","Community Health Centers"]
[12281,"Fresenius Medical Care Boston Carney","Community Health Centers"]
[61,"Geiger Gibson Community Health Center","Community Health Centers"]
[64,"Greater Lawrence Family Health Center","Community Health Centers"]
[12207,"Greater Lawrence Family Health Center - Lawrence General Hospital ","Community Health Centers"]
[10218,"Greater Lawrence Family Health Center - Park Street","Community Health Centers"]
[65,"Greater New Bedford Community Health Center","Community Health Centers"]
[20,"Greater Roslindale Medical and Dental Center","Community Health Centers"]
[12340,"Harbor Community Health Center - Plymouth","Community Health Centers"]
[4461,"Harbor Health Services","Community Health Centers"]
[69,"Harvard Street Neighborhood Health Center","Community Health Centers"]
[20247,"Health Imperatives,Inc","Community Health Centers"]
[72,"HealthFirst Family Care Center","Community Health Centers"]
[74,"Hilltown Community Health Centers","Community Health Centers"]
[76,"Holyoke Health Center","Community Health Centers"]
[7972,"Island Health Care","Community Health Centers"]
[84,"Lowell Community Health Center ","Community Health Centers"]
[86,"Lynn Community Health Center","Community Health Centers"]
[7845,"Manet Community Health Center","Community Health Centers"]
[87,"Manet Community Health Center - North Quincy","Community Health Centers"]
[7954,"Mansfield Health Center","Community Health Centers"]
[90,"Mattapan Community Health Center","Community Health Centers"]
[16674,"New England Sinai Hospital a Steward Family Hospital Inc","Community Health Centers"]
[108,"North End Waterfront Health (formerly North End CHC)","Community Health Centers"]
[1456,"North Shore Community Health","Community Health Centers"]
[111,"Outer Cape Health Services","Community Health Centers"]
[1455,"Peabody Family Health Center","Community Health Centers"]
[4916,"Planned Parenthood League of Massachusetts","Community Health Centers"]
[10243,"Provincetown Health Center","Community Health Centers"]
[117,"Sidney Borum Jr. Health Center","Community Health Centers"]
[21,"South Boston Community Health Center","Community Health Centers"]
[120,"South Cove Community Health Center","Community Health Centers"]
[121,"South End Community Health Center","Community Health Centers"]
[3874,"Springfield Health Services for the Homeless","Community Health Centers"]
[128,"Stanley Street Treatment and Resources (SSTAR)","Community Health Centers"]
[20034,"Tri River Health Center","Community Health Centers"]
[134,"Upham's Corner Health Center","Community Health Centers"]
[9366,"Westwood Dialysis Center","Community Health Centers"]
[12845,"Whittier Bradford Transitional Care Unit","Community Health Centers"]
[137,"Whittier Street Health Center","Community Health Centers"]
[4062,"Whittier Westborough Transitional Care Unit","Community Health Centers"]
[12015,"Women's Health Services","Community Health Centers"]
[12713,"AdCare Hospital - Quincy Outpatient","Community Mental Health Centers"]
[20031,"AdCare Outpatient - North Dartmouth","Community Mental Health Centers"]
[11070,"Advocates","Community Mental Health Centers"]
[10073,"Advocates Community Counseling","Community Mental Health Centers"]
[19997,"AMEGO INC.","Community Mental Health Centers"]
[12031,"Amesbury Psychological Center","Community Mental Health Centers"]
[11579,"Arbour Counseling Services","Community Mental Health Centers"]
[11838,"Arbour Elder Services","Community Mental Health Centers"]
[19982,"Autism Behavioral Center","Community Mental Health Centers"]
[19983,"Autism Spectrum Therapies, LLC","Community Mental Health Centers"]
[20288,"Aware Recovery Care of Massachusetts","Community Mental Health Centers"]
[11071,"Bay Cove Human Services","Community Mental Health Centers"]
[11072,"Bay State Community Services","Community Mental Health Centers"]
[19984,"Behavioral Connections LLC","Community Mental Health Centers"]
[10071,"Behavioral Health Network","Community Mental Health Centers"]
[19996,"Bierman ABA","Community Mental Health Centers"]
[12111,"Brandon Residential Treatment Center","Community Mental Health Centers"]
[11073,"Bridgewell (CMHC)","Community Mental Health Centers"]
[9709,"Brockton Area Multi-Services, Inc. (BAMSI)","Community Mental Health Centers"]
[11074,"Brockton-Area Multi-Services","Community Mental Health Centers"]
[20524,"BROOK RECOVERY CENTERS INC","Community Mental Health Centers"]
[11075,"Brookline Community Mental Health Center","Community Mental Health Centers"]
[12046,"Cambridge Eating Disorder Center","Community Mental Health Centers"]
[10082,"Cape Cod Human Services","Community Mental Health Centers"]
[19998,"Cape Cod Neuropsychology  ","Community Mental Health Centers"]
[11078,"Catholic Charitable Bureau - Archdiocese of Boston","Community Mental Health Centers"]
[19985,"CENTER FOR AUTISM RELATED DISORDERS, INC","Community Mental Health Centers"]
[20205,"Center for Family Development","Community Mental Health Centers"]
[11079,"Center for Human Development","Community Mental Health Centers"]
[20243,"Center of Human Development CRP Clinic","Community Mental Health Centers"]
[11080,"Child & Family Services","Community Mental Health Centers"]
[11082,"Childrens Friend","Community Mental Health Centers"]
[11083,"Clinical & Support Options","Community Mental Health Centers"]
[19986,"COASTAL ABA LLC","Community Mental Health Centers"]
[19949,"Column Health","Community Mental Health Centers"]
[11085,"Community Counseling of Bristol Coutny","Community Mental Health Centers"]
[14300,"Community Healthcare","Community Mental Health Centers"]
[4156,"Community HealthLink","Community Mental Health Centers"]
[999903,"Community Mental Health Centers","Community Mental Health Centers"]
[11087,"Comprehensive Outpatient Services","Community Mental Health Centers"]
[9415,"Criterion Child Enrichment","Community Mental Health Centers"]
[12079,"DCS Mental Health","Community Mental Health Centers"]
[20206,"Eating Disorder Center of Boston","Community Mental Health Centers"]
[11089,"Eliot Community Human Services","Community Mental Health Centers"]
[19987,"FAMILY BEHAVIORAL HEALTH INC.","Community Mental Health Centers"]
[11090,"Family Continuity Program","Community Mental Health Centers"]
[19988,"FAMILY PERSPECTIVES INC.","Community Mental Health Centers"]
[11091,"Family Service Association of Greater Boston","Community Mental Health Centers"]
[11093,"Family Service Association of Greater Fall River","Community Mental Health Centers"]
[19989,"Futures Behavior Therapy Center, LLC","Community Mental Health Centers"]
[11094,"Gandara Mental Health Center","Community Mental Health Centers"]
[19999,"GEN PSYCHOLOGICAL ASSOC","Community Mental Health Centers"]
[11095,"Gosnold","Community Mental Health Centers"]
[12032,"Habit Opco","Community Mental Health Centers"]
[16660,"Haverhill Pavilion","Community Mental Health Centers"]
[11096,"Health & Education Services","Community Mental Health Centers"]
[20244,"Healthier You Wellness Nutrition Partners of Greater Boston LLC","Community Mental Health Centers"]
[20000,"Healthy Pathways Mental Health ","Community Mental Health Centers"]
[12045,"High Point Treatment Center","Community Mental Health Centers"]
[16580,"Hospital for Behavioral Medicine","Community Mental Health Centers"]
[9435,"Human Relations Service","Community Mental Health Centers"]
[12113,"Italian Home For Children","Community Mental Health Centers"]
[20009,"James Levine and Associates, P.C.","Community Mental Health Centers"]
[11097,"Jewish Family and Children's Services","Community Mental Health Centers"]
[10552,"Justice Resource Institute","Community Mental Health Centers"]
[19990,"JUVO BEHAVIORAL HEALTH OF MASSACHUSETTS","Community Mental Health Centers"]
[19991,"KINDLE BEHAVIOR CONSULTANTS, INC","Community Mental Health Centers"]
[12624,"Laurel Hill Inn","Community Mental Health Centers"]
[20001,"LEARNING SOLUTIONS FOR LEARNING SUCCESS, LLC","Community Mental Health Centers"]
[20002,"Maron DGA PC","Community Mental Health Centers"]
[10298,"MASSACHUSETTS MENTOR LLC","Community Mental Health Centers"]
[20003,"Massachusetts Psychiatric Services","Community Mental Health Centers"]
[11099,"Massachusetts Society for the Prevention of Cruelty to Children (dba MSPCC)","Community Mental Health Centers"]
[20004,"MEDICAL PSYCHOLOGY CENTER","Community Mental Health Centers"]
[10320,"Norteast Arc Inc","Community Mental Health Centers"]
[11103,"North Charles Mental Clinic","Community Mental Health Centers"]
[11580,"North East Health Services","Community Mental Health Centers"]
[11104,"North Suffolk Mental Health","Community Mental Health Centers"]
[13123,"Northeast Behavioral Associates","Community Mental Health Centers"]
[8851,"Northeast Behavioral Health Corporation","Community Mental Health Centers"]
[20010,"NOVA PSYCHIATRIC SERVICES","Community Mental Health Centers"]
[11105,"Old Colony Y","Community Mental Health Centers"]
[20011,"PEOPLE CARE INC","Community Mental Health Centers"]
[12034,"Phoenix Houses of New England - Houghs Neck","Community Mental Health Centers"]
[11729,"Priority Professional Care, LLC","Community Mental Health Centers"]
[19992,"RCS BEHAVIORAL AND EDUCATIONAL CONSULTING, LLC","Community Mental Health Centers"]
[15494,"Recovery Centers of America","Community Mental Health Centers"]
[15495,"Recovery Centers of America (Danvers)","Community Mental Health Centers"]
[19993,"RECREATIONAL EDUCATION CENTER, LLC","Community Mental Health Centers"]
[4157,"River Valley Counseling Center","Community Mental Health Centers"]
[11106,"River Valley Counseling Center - Holyoke","Community Mental Health Centers"]
[11107,"Riverside Community Care","Community Mental Health Centers"]
[12115,"Saint Vincent's Home","Community Mental Health Centers"]
[8787,"Schwartz Center for Children","Community Mental Health Centers"]
[13229,"Serenity at Summit New England","Community Mental Health Centers"]
[11108,"ServiceNet","Community Mental Health Centers"]
[11109,"Seven Hills Foundation and Affiliates","Community Mental Health Centers"]
[20005,"Siracusa Associates","Community Mental Health Centers"]
[11111,"South Bay Mental Health","Community Mental Health Centers"]
[11113,"South Middlesex Opportunity Council","Community Mental Health Centers"]
[20006,"South Shore Center for Wellness, LT ","Community Mental Health Centers"]
[11115,"South Shore Mental Health Center","Community Mental Health Centers"]
[19994,"Specialized Autism Consultants, LLC","Community Mental Health Centers"]
[11116,"Spectrum Health Systems","Community Mental Health Centers"]
[20026,"SPRING HILL RECOVERY CENTER","Community Mental Health Centers"]
[12116,"St. Ann's Home","Community Mental Health Centers"]
[20208,"Stoney Brook Counseling Center","Community Mental Health Centers"]
[20600,"Sunrise Detox Millbury, LLC","Community Mental Health Centers"]
[20027,"SWIFT RIVER","Community Mental Health Centers"]
[19995,"THE AUTISM COMMUNITY THERAPISTS, LLC","Community Mental Health Centers"]
[11117,"The Brien Center for Mental Health and Substance Abuse Services","Community Mental Health Centers"]
[11119,"The Home for Little Wanderers","Community Mental Health Centers"]
[11120,"The Key Program","Community Mental Health Centers"]
[20239,"The May Institute, Inc","Community Mental Health Centers"]
[12679,"The Renfrew Center of Massachusetts","Community Mental Health Centers"]
[12673,"The Walker Home","Community Mental Health Centers"]
[12035,"Thom Child & Family Services","Community Mental Health Centers"]
[9686,"Toward Independent Living and Learning (TILL), Inc.","Community Mental Health Centers"]
[11122,"Valley Psychiatric Service","Community Mental Health Centers"]
[10717,"Victory Human Services, Inc.","Community Mental Health Centers"]
[19894,"Washburn House   ","Community Mental Health Centers"]
[11124,"Wayside Youth & Family Support Network","Community Mental Health Centers"]
[11125,"West Central Family and Counseling","Community Mental Health Centers"]
[12033,"Youth Opportunities Upheld","Community Mental Health Centers"]
[12050,"Advantage Imaging Solutions","Dx Imaging"]
[16570,"Alliance HealthCare Services","Dx Imaging"]
[11128,"Anna Jaques / Lawrence General (Alliance)","Dx Imaging"]
[11129,"Aurora Breast MRI Central","Dx Imaging"]
[11131,"Aurora Imaging Corp.","Dx Imaging"]
[11132,"Baystate MRI & Imaging Center (Main Street)","Dx Imaging"]
[11133,"Baystate MRI & Imaging Center (Wason Avenue)","Dx Imaging"]
[11134,"BIH Radiological Foundation","Dx Imaging"]
[11135,"Biocardia Diagnostics","Dx Imaging"]
[11559,"Boston Breast Diagnostic Center, LLC","Dx Imaging"]
[19884,"Brockton Radiological Associates","Dx Imaging"]
[11136,"Brockton Regional MRI Center","Dx Imaging"]
[11137,"Cambridge Regional MRI Center","Dx Imaging"]
[11138,"Cape Cod PET/CT Services (Harwich)","Dx Imaging"]
[11139,"Cape Cod PET/CT Services (Sandwich)","Dx Imaging"]
[19977,"Carecentral Urgent Care","Dx Imaging"]
[19885,"Center For Diagnostic Imaging  ","Dx Imaging"]
[19886,"Center For Diagnostic Imaging - Woburn","Dx Imaging"]
[12355,"Charles River Medical Associates - Dx Imaging","Dx Imaging"]
[11148,"Coastal Sleep Diagnostic","Dx Imaging"]
[12946,"DIAGNOSTIC ULTRASOUND ASSOC PC","Dx Imaging"]
[19973,"Exosome Diagnostics LLC","Dx Imaging"]
[11150,"Fall River - New Bedford MRI Center","Dx Imaging"]
[12279,"Fall River Kidney Center","Dx Imaging"]
[11151,"Franklin MRI Center","Dx Imaging"]
[999905,"Freestanding Diagnostic Imaging","Dx Imaging"]
[11152,"Greater Springfield MRI","Dx Imaging"]
[19976,"Harvard Medical Faculty Physicians Radiology","Dx Imaging"]
[11154,"Imaging Associates","Dx Imaging"]
[11155,"Imaging Consultants","Dx Imaging"]
[11159,"InMed Breast Imaging Centers","Dx Imaging"]
[11156,"InMed Diagnostic Women's Center (Bourne)","Dx Imaging"]
[11157,"InMed Diagnostic Women's Center (Norwell)","Dx Imaging"]
[11158,"InMed Diagnostic Women's Center (South Dennis)","Dx Imaging"]
[20245,"Jefferson Radiology, PC","Dx Imaging"]
[12093,"L&M Radiology","Dx Imaging"]
[19978,"Lahey Health Urgent Care","Dx Imaging"]
[19975,"Lexington MRI/Lahey Clinic","Dx Imaging"]
[12051,"LMRAD CO","Dx Imaging"]
[11568,"Longwood MRI Specialists","Dx Imaging"]
[20024,"MASSACHUSETTS NEURODIAGNOSTICS","Dx Imaging"]
[17746,"Medpost Urgent Care","Dx Imaging"]
[11841,"Merrimack Valley Health Services","Dx Imaging"]
[11162,"Merrimack Valley MRI","Dx Imaging"]
[11164,"Metrowest MRI","Dx Imaging"]
[11165,"Mobil Medical Diagnostic Services (MMDS) of Boston  ","Dx Imaging"]
[11166,"Mobile Medical Radiology & EKG ","Dx Imaging"]
[11167,"MRI of Chemlsford","Dx Imaging"]
[11168,"N. E. Pet of Greater Lowell","Dx Imaging"]
[11169,"NAVIX DIAGNOSTIX - Taunton","Dx Imaging"]
[19883,"Neurocare","Dx Imaging"]
[19882,"New England PET Imaging System","Dx Imaging"]
[11172,"Open MRI of Dedham","Dx Imaging"]
[11174,"Physicians Diagnostics","Dx Imaging"]
[19979,"PM Pediatrics of New England, LLC","Dx Imaging"]
[11175,"Premier Diagnostic","Dx Imaging"]
[20246,"Providence Diagnostic Imaging, Inc.","Dx Imaging"]
[11176,"Radiology and Imaging Inc. (next to Baystate Medical)","Dx Imaging"]
[11177,"Radiology Associates Norwood","Dx Imaging"]
[11180,"Shared Diagnostic Services","Dx Imaging"]
[11181,"Shields Center of Brockton  ","Dx Imaging"]
[12712,"Shields Health Care Group","Dx Imaging"]
[17725,"Shields Imaging at Anna Jaques Hospital, LLC","Dx Imaging"]
[11183,"Shields Imaging of Eastern MA","Dx Imaging"]
[12076,"Shields Imaging of Lowell General Hospital","Dx Imaging"]
[19879,"Shields MRI and Imaging Center of Cape Cod, L ","Dx Imaging"]
[11161,"Shields MRI Boston","Dx Imaging"]
[11184,"Shields MRI Framingham  ","Dx Imaging"]
[11185,"Shields MRI Imaging Central Cape","Dx Imaging"]
[19880,"Shields Pet/Ct At Cooley Dickinson  ","Dx Imaging"]
[19881,"Shields Signature Imaging","Dx Imaging"]
[12359,"Shields Winchester Hospital (MRI)","Dx Imaging"]
[12052,"Sleep Management Solutions","Dx Imaging"]
[19875,"Sleep Medicine Services of Western","Dx Imaging"]
[11842,"SleepMed DigiTrace Care Services","Dx Imaging"]
[19876,"SleepMed, Inc.   ","Dx Imaging"]
[19980,"South Shore Health Express LLC","Dx Imaging"]
[11182,"South Shore Regional MRI Limited Partnership","Dx Imaging"]
[19877,"South Shore Sleep Diagnostics ","Dx Imaging"]
[11142,"Steward PET Imaging   Carney","Dx Imaging"]
[11141,"Steward PET Imaging   Good Samaritan","Dx Imaging"]
[11144,"Steward PET Imaging   Holyoke Medical Center","Dx Imaging"]
[11143,"Steward PET Imaging   Saint Anne's","Dx Imaging"]
[11140,"Steward PET Imaging   St. Elizabeth's","Dx Imaging"]
[11573,"Steward PET Imaging LLC Norwood Hospital / Foxboro","Dx Imaging"]
[11199,"The MRI Center of Springfield","Dx Imaging"]
[12695,"Tufts Medical Center PET-CT Services","Dx Imaging"]
[11203,"UMASS Medical Health Alliance","Dx Imaging"]
[11577,"UMass Memorial MRI & Imaging Center - Palmer","Dx Imaging"]
[11578,"UMass Memorial MRI & Imaging Center - Worcester","Dx Imaging"]
[11204,"UMASS Memorial MRI Marlborough","Dx Imaging"]
[11205,"UMASS Memorial MRI/Imaging","Dx Imaging"]
[19878,"United Sleep Diagnostics, Inc  ","Dx Imaging"]
[19981,"Urgent Care Express","Dx Imaging"]
[11207,"Western Massachusetts MRI Services","Dx Imaging"]
[11208,"Weymouth MRI  ","Dx Imaging"]
[19893,"Accu Reference Medical Lab, LLC      ","Freestanding Lab"]
[11839,"Athena Diagnostics","Freestanding Lab"]
[11583,"Baystate Reference Laboratory","Freestanding Lab"]
[3106,"Berkshire Health Systems","Freestanding Lab"]
[15513,"Bio-Reference Laboratories","Freestanding Lab"]
[11054,"BOSTON CLINICAL LAB ","Freestanding Lab"]
[12680,"Boston Heart Diagnostics","Freestanding Lab"]
[19890,"Boston University Clinical Laboratory ","Freestanding Lab"]
[19935,"Burlington Regional Dialysis","Freestanding Lab"]
[12996,"Cardionet ","Freestanding Lab"]
[11052,"Center For Human Genetics","Freestanding Lab"]
[11034,"Charles River Medical Associates - Clinical Lab","Freestanding Lab"]
[11036,"CHILDHOOD LEAD SCREENING","Freestanding Lab"]
[11048,"CLINICAL SCIENCE LAB ","Freestanding Lab"]
[11055,"CLINIGEN","Freestanding Lab"]
[13247,"Coastal Medical Laboratory","Freestanding Lab"]
[12048,"Cohen Dermatopathology","Freestanding Lab"]
[11037,"COMMONWEALTH LABS","Freestanding Lab"]
[15511,"Counsly - San Francisco","Freestanding Lab"]
[19910,"DaVita Dialysis - Weymouth","Freestanding Lab"]
[19911,"DaVita Dialysis - Woburn","Freestanding Lab"]
[11024,"DERMPATH NEW ENGLAND","Freestanding Lab"]
[12692,"DISCOVERY DIAGNOSTIC LABORATORY","Freestanding Lab"]
[12394,"East Side Clinical Lab","Freestanding Lab"]
[11040,"Esoterix Genetic Laboratories","Freestanding Lab"]
[9384,"Faulkner Medical Laboratories","Freestanding Lab"]
[11051,"FIRST-CALL MEDICAL ","Freestanding Lab"]
[19887,"Foundation Medicine, Inc.","Freestanding Lab"]
[11045,"FRANEY MEDICAL LAB","Freestanding Lab"]
[999904,"Freestanding Clinical Labs","Freestanding Lab"]
[19929,"Fresenius Medical Care Cape Cod","Freestanding Lab"]
[19936,"Fresenius Medical Care Chicopee","Freestanding Lab"]
[19927,"Fresenius Medical Care Fairhaven","Freestanding Lab"]
[19928,"Fresenius Medical Care Framingham","Freestanding Lab"]
[19932,"Fresenius Medical Care Freedom Center of Worcester","Freestanding Lab"]
[19864,"Fresenius Medical Care Greenfield","Freestanding Lab"]
[19922,"Fresenius Medical Care Medford","Freestanding Lab"]
[19926,"Fresenius Medical Care Methuen","Freestanding Lab"]
[19931,"Fresenius Medical Care Newburyport","Freestanding Lab"]
[19920,"Fresenius Medical Care North Suburban","Freestanding Lab"]
[19906,"Fresenius Medical Care of Lowell","Freestanding Lab"]
[19907,"Fresenius Medical Care of Merrimack Valley","Freestanding Lab"]
[19919,"Fresenius Medical Care Palmer","Freestanding Lab"]
[19917,"Fresenius Medical Care Peabody","Freestanding Lab"]
[19916,"Fresenius Medical Care Pioneer Valley","Freestanding Lab"]
[19908,"Fresenius Medical Care QCDC of Weymouth","Freestanding Lab"]
[19913,"Fresenius Medical Care South Suburban Dialysis","Freestanding Lab"]
[19868,"Fresenius Medical Care Springfield","Freestanding Lab"]
[19915,"Fresenius Medical Care Stoneham","Freestanding Lab"]
[19914,"Fresenius Medical Care Webster","Freestanding Lab"]
[19909,"Fresenius Medical Care Western Mass Kidney Center","Freestanding Lab"]
[19930,"Fresenius Medical Care Worcester County Dialysis","Freestanding Lab"]
[12945,"Good Start Genetics","Freestanding Lab"]
[11049,"HARBOR MEDICAL ASSOC PC","Freestanding Lab"]
[20599,"Imgen Diagnostics, Inc.","Freestanding Lab"]
[16555,"Inform Diagnostics ","Freestanding Lab"]
[19888,"Invitae Corporation  ","Freestanding Lab"]
[11022,"LAB USA","Freestanding Lab"]
[11582,"Labcorp of America - All locations","Freestanding Lab"]
[11028,"LABCORP OF AMERICA HOLD (in Worcester)","Freestanding Lab"]
[11035,"LIFE LABORATORIES","Freestanding Lab"]
[19905,"Mary Eliza Mahoney Dialysis Center","Freestanding Lab"]
[11043,"Medical Drug Testing Lab Inc","Freestanding Lab"]
[12047,"Myriad Genetic Laboratories","Freestanding Lab"]
[11021,"NAVIX DIAGNOSTIX - Lowell","Freestanding Lab"]
[19892,"New England Pathology Associates PC  ","Freestanding Lab"]
[19974,"Nordx","Freestanding Lab"]
[19870,"Northshore Regional Dialysis Center","Freestanding Lab"]
[19869,"NxStage Kidney Care Boston North","Freestanding Lab"]
[12028,"Optimum Labs ","Freestanding Lab"]
[12029,"Oxford Immunotec","Freestanding Lab"]
[19889,"Precision Toxicology, LLC","Freestanding Lab"]
[9670,"Quest Diagnostics","Freestanding Lab"]
[11026,"QUEST DIAGNOSTICS - Florence","Freestanding Lab"]
[12360,"Quest Diagnostics - Umass","Freestanding Lab"]
[12681,"Quest Diagnostics (in Marlborough)","Freestanding Lab"]
[19891,"Quest Diagnostics (in Norwood)","Freestanding Lab"]
[20012,"Radiation Therapy of Winchester, LLC","Freestanding Lab"]
[15519,"ReproSource Fertility Diagnostics","Freestanding Lab"]
[11042,"SECON OF NEW ENGLAND ","Freestanding Lab"]
[11031,"STRATA DIAGNOSTICS","Freestanding Lab"]
[11023,"TOLMAN CLINICAL LABORATORY","Freestanding Lab"]
[16659,"Total Wellness Centers LLC","Freestanding Lab"]
[11027,"U.S.LABORATORY CORP","Freestanding Lab"]
[19912,"University Dialysis Center","Freestanding Lab"]
[11038,"VALLEY MEDICAL GROUP LAB","Freestanding Lab"]
[12709,"Winchester Laboratory Associates","Freestanding Lab"]
[13008,"A Better Life Homecare, LLC","Home Health Agency"]
[19851,"A CARING TOUCH NURSING AND HOME CARE SERVICES INC","Home Health Agency"]
[12638,"A Quality Home Care, Inc","Home Health Agency"]
[14331,"AB Home Healthcare, LLC","Home Health Agency"]
[14343,"Abbott Home Health Care, Inc","Home Health Agency"]
[10405,"Able Home Care","Home Health Agency"]
[8908,"ABP Best Home Care Agency","Home Health Agency"]
[14371,"Access Homecare Services, Inc","Home Health Agency"]
[10411,"Acclaim Home Health Care","Home Health Agency"]
[9519,"ACE Medical Services,Inc.","Home Health Agency"]
[4352,"Acton Public Health Nursing Services","Home Health Agency"]
[12362,"All At Home Health Care, LLC","Home Health Agency"]
[466,"All Care Resources, Inc. (Lynn)","Home Health Agency"]
[3186,"All Care Visiting Nurse Association of Greater Lynn (HHA)","Home Health Agency"]
[11545,"Alliance Home Care Visiting Nurse Agency, Inc.","Home Health Agency"]
[12441,"Allied Health Systems LLC","Home Health Agency"]
[20248,"AlphaCare Home Health Agency, Inc.","Home Health Agency"]
[12184,"Alternative Home Healthcare","Home Health Agency"]
[12443,"Altranais Home Care LLC","Home Health Agency"]
[12777,"APEX K Home Care Inc","Home Health Agency"]
[3209,"Apria Health Care","Home Health Agency"]
[10408,"Art of Care","Home Health Agency"]
[14341,"ASSOCIATED HOME CARE ","Home Health Agency"]
[4414,"At Home Care","Home Health Agency"]
[14301,"Athena Hospice Service of Massachusetts","Home Health Agency"]
[19939,"BAYADA Home Health Care, Inc. - Dartmouth","Home Health Agency"]
[11488,"BAYADA Home Health Care, Inc. - Hyannis (HHA2)","Home Health Agency"]
[8815,"BAYADA Home Health Care, Inc. - Plymouth","Home Health Agency"]
[12224,"BAYADA Home Health Care, Inc. - Worcester","Home Health Agency"]
[20008,"BAYADA NURSES","Home Health Agency"]
[14460,"Baypath Elder Services","Home Health Agency"]
[12153,"Baystate Home Infusion and Respiratory Services","Home Health Agency"]
[3966,"Baystate Visiting Nurse Association and Hospice - Springfield","Home Health Agency"]
[3222,"Beacon Hospice, an Amedisys Company","Home Health Agency"]
[14476,"Beneficence Home Healthcare Inc","Home Health Agency"]
[6835,"Berkshire Visiting Nurse Association","Home Health Agency"]
[13090,"Better Life At Home LLC","Home Health Agency"]
[11807,"Beyond Healthcare Agency","Home Health Agency"]
[20249,"Beyond Independent Living LLC","Home Health Agency"]
[12971,"Blissful Homecare","Home Health Agency"]
[17762,"Blue Hillis Therapeutics Inc","Home Health Agency"]
[12220,"Boston Home Health Aides, LLC","Home Health Agency"]
[12108,"Boston Home Infusion Medical Services","Home Health Agency"]
[10302,"Boston Senior Home Care, Inc","Home Health Agency"]
[13052,"Brigham Home Care Services, INC.","Home Health Agency"]
[13151,"Brockton Home Health Agency LLC","Home Health Agency"]
[3264,"Brockton Visiting Nurse Association","Home Health Agency"]
[4360,"Capuano Home Health Care","Home Health Agency"]
[12427,"Care Dimensions","Home Health Agency"]
[19938,"Care Givers of Massachusetts","Home Health Agency"]
[20270,"Caregiver Homes of Massachusetts","Home Health Agency"]
[6811,"CareGroup Parmenter Home Care & Hospice","Home Health Agency"]
[10183,"Caretenders of Boston - North Andover","Home Health Agency"]
[14397,"Caring Bees Healthcare","Home Health Agency"]
[13091,"Caring Hearts Homecare, INC","Home Health Agency"]
[11783,"Caring R Us LLC","Home Health Agency"]
[10080,"Catholic Charities of the Diocese of Worcester","Home Health Agency"]
[10500,"Central Boston Elder Services, Inc.","Home Health Agency"]
[12473,"Central Home Health Care","Home Health Agency"]
[3303,"Centrus Homecare - Plymouth","Home Health Agency"]
[12468,"Century Home Care, LLC","Home Health Agency"]
[8075,"Cerebral Palsy Association of Eastern Massachusetts","Home Health Agency"]
[6384,"Chair-To-There","Home Health Agency"]
[13203,"Chelsea Jewish Lifecare","Home Health Agency"]
[12104,"Chest Physical Therapy Service","Home Health Agency"]
[3971,"Circle Home","Home Health Agency"]
[12472,"City Home Care, LLC","Home Health Agency"]
[10410,"Comfort Home Care","Home Health Agency"]
[19871,"Comfort Plus Caregivers","Home Health Agency"]
[6379,"Community Nurse and Hospice Care","Home Health Agency"]
[3334,"Community VNA","Home Health Agency"]
[19852,"COMPASSIONATE CARE HOSPICE OF SOUTHEASTERN MASSACHUSETTS LLC","Home Health Agency"]
[14333,"Complete Private Home Care Inc","Home Health Agency"]
[13108,"Convenient Homecare Services Inc.","Home Health Agency"]
[5494,"Coram Healthcare","Home Health Agency"]
[12785,"Cornerstone Healthcare Sytems, LLC","Home Health Agency"]
[13109,"Crown Home Healthcare & Psych Services MA, Inc","Home Health Agency"]
[485,"Cultured Care - Swansea","Home Health Agency"]
[20250,"Diplomat Specialty Infusion Group","Home Health Agency"]
[4364,"Diversified Visiting Nurse Association","Home Health Agency"]
[11865,"Douglas A. Thom Clinic - EIP","Home Health Agency"]
[19934,"EDGELIFE HEALTHCARE INC","Home Health Agency"]
[3392,"Elder Services of the Merrimack Valley","Home Health Agency"]
[19937,"Elderwood Home Care","Home Health Agency"]
[11632,"Ensure Healthcare Services (AFC)","Home Health Agency"]
[14258,"Epic Health Service ","Home Health Agency"]
[4356,"Epic Health Services - Shrewsbury","Home Health Agency"]
[19933,"Equalizer Home Health","Home Health Agency"]
[14336,"ESSY NURSING SERVICES","Home Health Agency"]
[14466,"Ethos","Home Health Agency"]
[10404,"Excel Home Care Services","Home Health Agency"]
[11585,"Excella Home Care ","Home Health Agency"]
[13083,"EZ Healthcare of Boston Group, Inc","Home Health Agency"]
[10096,"Family Care Extended","Home Health Agency"]
[20251,"Fortcom Health Services","Home Health Agency"]
[4136,"Franciscan Hospital for Children Home Health Services (HHA)","Home Health Agency"]
[19865,"Freedom Home Care Services","Home Health Agency"]
[10414,"Gentiva Health Services - Quincy","Home Health Agency"]
[13086,"Gentle Home Care Services Inc.","Home Health Agency"]
[19925,"Global Health Care Services","Home Health Agency"]
[10196,"Global Healthcare Services, LLC","Home Health Agency"]
[19921,"Golden Living Home Care","Home Health Agency"]
[10398,"Greater Boston Home Health Care, LLC","Home Health Agency"]
[6371,"Greater Medford Visiting Nurse Association","Home Health Agency"]
[14375,"Guardian Health Network Corp","Home Health Agency"]
[12218,"Guardian Healthcare, LLC","Home Health Agency"]
[10409,"Guardian Home Health Care","Home Health Agency"]
[3431,"GVNA HealthCare","Home Health Agency"]
[6503,"Hallmark Health Visiting Nurse Association and Hospice","Home Health Agency"]
[6826,"Harrington Memorial Hospital Home Health Agency (HHA)","Home Health Agency"]
[4932,"Harvard Vanguard Medical Associates, Medford / Atrius Health","Home Health Agency"]
[19924,"HEALTHPOINT HOMECARE SERVICES","Home Health Agency"]
[6818,"Holyoke Visiting Nurse Association","Home Health Agency"]
[6348,"Home Care Solutions","Home Health Agency"]
[13148,"Home Care VNA LLC","Home Health Agency"]
[999906,"Home Health Agencies","Home Health Agency"]
[3523,"Home Health VNA","Home Health Agency"]
[9757,"HopeHealth ","Home Health Agency"]
[13110,"Horizon Homecare LLC","Home Health Agency"]
[8092,"Hospice of the Good Shepherd","Home Health Agency"]
[7200,"Hospice of the North Shore and Greater Boston","Home Health Agency"]
[3527,"HospiceCare in the Berkshires","Home Health Agency"]
[12470,"Ideal Health Care Systems","Home Health Agency"]
[12768,"Independent at Home","Home Health Agency"]
[13076,"Integrity Home Care Solutions, LLC","Home Health Agency"]
[19923,"Interim HealthCare of Lexington MA","Home Health Agency"]
[4415,"Interim HealthCare of Western Massachusetts (HHA)","Home Health Agency"]
[10413,"International Health Solutions Inc","Home Health Agency"]
[10551,"Jewish Health Care Center","Home Health Agency"]
[10312,"Kennedy Donovan Center","Home Health Agency"]
[6502,"Kindred at Home - Springfield (HHA)","Home Health Agency"]
[4372,"Kit Clark Senior Health Services","Home Health Agency"]
[10013,"Lahey Health at Home","Home Health Agency"]
[3584,"Lee Visiting Nurses","Home Health Agency"]
[13048,"Lifod Home Health Care, LLC","Home Health Agency"]
[10645,"Loving Care Agency","Home Health Agency"]
[12444,"Maestro-Connections Health Systems LLC","Home Health Agency"]
[12569,"Massachusetts Care Services Inc.","Home Health Agency"]
[4434,"Maxim Healthcare Services","Home Health Agency"]
[8635,"Medical Professional Services","Home Health Agency"]
[8406,"Medical Resources Home Health Corporation","Home Health Agency"]
[14340,"MEDICAL STAFFING GROUP INC","Home Health Agency"]
[12154,"Mercy Homecare","Home Health Agency"]
[3703,"Merrimack Valley Hospice","Home Health Agency"]
[12772,"Metropolitan Home Care","Home Health Agency"]
[13130,"Middlesex Healthcare Services Inc","Home Health Agency"]
[6812,"Multicultural Community Services of the Pioneer Valley","Home Health Agency"]
[4379,"Multicultural Home Care","Home Health Agency"]
[13068,"Namaste Home Care, LLC","Home Health Agency"]
[16543,"Nashoba Associated Boards of Health","Home Health Agency"]
[14339,"NASHOBA HOMECARE","Home Health Agency"]
[4380,"Nashoba Nursing Service and Hospice","Home Health Agency"]
[4381,"Natick Visiting Nurse Association","Home Health Agency"]
[11872,"Neighborhood Home Care, LLC","Home Health Agency"]
[6813,"New England Home Health Services (HHA)","Home Health Agency"]
[11867,"New England Home Therapies","Home Health Agency"]
[12754,"New England Homecare Solutions, Inc.","Home Health Agency"]
[12027,"New England Life Care","Home Health Agency"]
[8985,"Nizhoni Health Systems","Home Health Agency"]
[4384,"Noble Visiting Nurse and Hospice Services","Home Health Agency"]
[9685,"Northeast Arc","Home Health Agency"]
[8111,"Northeast Clinical Services - Danvers","Home Health Agency"]
[10406,"Northeast HomeCare","Home Health Agency"]
[3766,"NVNA and Hospice","Home Health Agency"]
[8900,"Old Colony Elderly Services, Inc","Home Health Agency"]
[3780,"Old Colony Hospice","Home Health Agency"]
[12916,"Optimal Home Care LLC","Home Health Agency"]
[19874,"Option Care","Home Health Agency"]
[6491,"Overlook Visiting Nurse Association - West Yarmouth","Home Health Agency"]
[6495,"Overlook Visiting Nurse Association, Inc. - Worcester (HHA)","Home Health Agency"]
[4147,"Partners HealthCare at Home - Home Care","Home Health Agency"]
[9763,"Partners HealthCare at Home - Home Care - Chelsea","Home Health Agency"]
[8112,"Partners Home Care - Waltham","Home Health Agency"]
[19918,"Pathways Healthcare","Home Health Agency"]
[12939,"Patient Care Solutions","Home Health Agency"]
[12938,"Peace & Harmony Homecare, LLC","Home Health Agency"]
[11551,"Pediatria Healthcare","Home Health Agency"]
[4388,"Pernet Family Health Service","Home Health Agency"]
[4390,"Personal Touch Home Aides of Massachusetts - Brighton","Home Health Agency"]
[8618,"Personal Touch Home Aides of Massachusetts - North Chelmsford","Home Health Agency"]
[4428,"Personal Touch Home Aides of Massachusetts - North Dartmouth (HHA)","Home Health Agency"]
[6814,"Personal Touch Home Aides of Massachusetts - West Springfield","Home Health Agency"]
[13114,"Pinnacle Home Healthcare Services, Inc","Home Health Agency"]
[13009,"Pivot Point Homecare Inc","Home Health Agency"]
[12788,"Prestige Health Care Services, Inc.","Home Health Agency"]
[11552,"Primary Homecare Specialties","Home Health Agency"]
[16562,"Prime Home Health and Companion Care Inc","Home Health Agency"]
[6506,"Providence Home Care","Home Health Agency"]
[4387,"PSA Home HealthCare - Brockton (HHA)","Home Health Agency"]
[13039,"Quality Home Care Services Inc","Home Health Agency"]
[14448,"Radiance Home Health Care","Home Health Agency"]
[12795,"Relief Home Health Services, Inc.","Home Health Agency"]
[13087,"Royal Comfort Home Care Inc.","Home Health Agency"]
[20025,"Salmon VNA Services","Home Health Agency"]
[16547,"Seasons Hospice & Palliative Care of Massachusetts, LLC","Home Health Agency"]
[12790,"Secure Home Health Care, Inc.","Home Health Agency"]
[6373,"ServiceNet (HHA)","Home Health Agency"]
[6815,"Shriver Nursing Services Family Lives (HHA)","Home Health Agency"]
[19850,"Soto Home Care, Inc","Home Health Agency"]
[3866,"South Shore Visiting Nurse Association","Home Health Agency"]
[3974,"Southcoast Visiting Nurse Association","Home Health Agency"]
[8933,"Southwest Boston Senior Services dba Ethos","Home Health Agency"]
[3873,"Spectrum Home Health Care","Home Health Agency"]
[13196,"Standards Home Care","Home Health Agency"]
[11588,"Steward Home Care","Home Health Agency"]
[10393,"Steward Home Care at Methuen","Home Health Agency"]
[6499,"Steward Home Care at Norwood","Home Health Agency"]
[6375,"Stoughton Public Health Association VNA","Home Health Agency"]
[4399,"Suburban Home Health Care","Home Health Agency"]
[19866,"T & N Reliable Nursing Care","Home Health Agency"]
[19863,"Tempus Unlimited","Home Health Agency"]
[4465,"Tender Loving Care Home Health Care - Agawam","Home Health Agency"]
[4373,"The Laboure Center Visiting Nurse Services","Home Health Agency"]
[19873,"Trinity Health of New England at Home","Home Health Agency"]
[12778,"Trinity Health of New England at Home","Home Health Agency"]
[12999,"Trinity Home Care Inc.","Home Health Agency"]
[20007,"Trinity Home Health Services  ","Home Health Agency"]
[6809,"UMass Memorial Home Health","Home Health Agency"]
[12201,"Vine Homecare and Staffing Inc.","Home Health Agency"]
[3963,"Visiting Nurse and Community Health Foundation","Home Health Agency"]
[6353,"Visiting Nurse Association and Hospice of Greater Milford","Home Health Agency"]
[3168,"Visiting Nurse Association of Boston","Home Health Agency"]
[3968,"Visiting Nurse Association of Cape Cod - Home Health and Hospice","Home Health Agency"]
[3970,"Visiting Nurse Association of Eastern Massachusetts","Home Health Agency"]
[3962,"Visiting Nurse Associations of New England (VNANE)","Home Health Agency"]
[4406,"VNA and Hospice of Cooley Dickinson","Home Health Agency"]
[11843,"VNA and Hospice of Western New England","Home Health Agency"]
[3960,"VNA Care Network - Needham","Home Health Agency"]
[3967,"VNA Care Network - Worcestar","Home Health Agency"]
[13003,"VNA of Cape Cod ","Home Health Agency"]
[4403,"VNA of Middlesex-East and Visiting Nurse Hospice","Home Health Agency"]
[3975,"VNA of Southern Worcester County","Home Health Agency"]
[12714,"Walgreens Infusion Services","Home Health Agency"]
[4408,"Walpole Area Visiting Nurse Association","Home Health Agency"]
[19867,"Western Mass Home Health Services","Home Health Agency"]
[6834,"Whittier Home Health Care Agency","Home Health Agency"]
[6513,"Winchester Home Care","Home Health Agency"]
[12081,"Wing VNA and Hospice","Home Health Agency"]
[4216,"ABBOTT HOUSE NURSING HOME","Skilled Nursing Facility"]
[722,"ABERJONA NURSING CENTER","Skilled Nursing Facility"]
[11502,"ACADEMY MANOR","Skilled Nursing Facility"]
[14329,"AGAWAM HEALTHCARE","Skilled Nursing Facility"]
[8444,"ALDEN COURT NURG. CARE & REH. CTR","Skilled Nursing Facility"]
[14477,"ALLIANCE HEALTH AT DEVEREUX","Skilled Nursing Facility"]
[4263,"ALLIANCE HEALTH AT MARINA BAY","Skilled Nursing Facility"]
[4282,"Alliance Health at Rosewood","Skilled Nursing Facility"]
[9612,"Alliance Health, Inc.","Skilled Nursing Facility"]
[9805,"ALLIANCE HEALTHCARE CENTER AT BRAINTREE","Skilled Nursing Facility"]
[11538,"APPLE VALLEY CENTER","Skilled Nursing Facility"]
[8576,"ARMENIAN NURSING & REHAB. CTR.","Skilled Nursing Facility"]
[9033,"Autumn Realty Trust","Skilled Nursing Facility"]
[713,"BALDWINVILLE SKILLED NURSING & REHAB CTR","Skilled Nursing Facility"]
[13147,"Bane Hancock Park LLC","Skilled Nursing Facility"]
[13145,"Bane Harbor House LLC","Skilled Nursing Facility"]
[13128,"BAYPOINTE REHAB CENTER","Skilled Nursing Facility"]
[768,"BEAR HILL NURSING CENTER","Skilled Nursing Facility"]
[18822,"BEAR MOUNTAIN AT ANDOVER","Skilled Nursing Facility"]
[18825,"Bear Mountain at Reading","Skilled Nursing Facility"]
[18823,"BEAR MOUNTAIN AT SUDBURY","Skilled Nursing Facility"]
[18826,"BEAR MOUNTAIN AT WORCESTER","Skilled Nursing Facility"]
[18824,"BEAR MT WEST SPRINGFIELD LLC DB","Skilled Nursing Facility"]
[10210,"BEAUMONT AT UNIVERSITY CAMPUS  ","Skilled Nursing Facility"]
[1153,"BEAUMONT REHAB & SKD NATICK","Skilled Nursing Facility"]
[5050,"BEAUMONT REHAB & SKD NORTHBOROUGH","Skilled Nursing Facility"]
[634,"BEAUMONT REHAB & SKD NORTHBRIDGE","Skilled Nursing Facility"]
[876,"BEAUMONT REHAB & SKD WESTBOROUGH","Skilled Nursing Facility"]
[4219,"BELMONT MANOR NURSING HOME","Skilled Nursing Facility"]
[1273,"BENJAMIN HEALTHCARE CENTER","Skilled Nursing Facility"]
[714,"BERKSHIRE PLACE","Skilled Nursing Facility"]
[935,"BETHANY HEALTH CARE CENTER","Skilled Nursing Facility"]
[725,"Blaire House - Milford","Skilled Nursing Facility"]
[729,"BLAIRE HOUSE LTCF TEWKSBURY","Skilled Nursing Facility"]
[703,"BLAIRE HOUSE LTCF WORCESTER","Skilled Nursing Facility"]
[12437,"BLUEBERRY HILL REHAB & HEALTHCARE CTR","Skilled Nursing Facility"]
[20136,"BLUPOINT MANAGEMENT II LLC DBA","Skilled Nursing Facility"]
[637,"BOSTON HOME","Skilled Nursing Facility"]
[10420,"BOURNE MANOR EXT CARE FACILITY","Skilled Nursing Facility"]
[12345,"BRAEMOOR HEALTH CENTER","Skilled Nursing Facility"]
[14327,"Braintree Manor Healthcare","Skilled Nursing Facility"]
[663,"Brandon Woods Of Dartmouth","Skilled Nursing Facility"]
[692,"Brandon Woods Of New Bedford","Skilled Nursing Facility"]
[12347,"BRENTWOOD REHAB & HEALTHCARE CTR","Skilled Nursing Facility"]
[12123,"Briarwood Rehab & Healthcare Ctr","Skilled Nursing Facility"]
[18817,"BRIGHAM HEALTH & REHABILITATION CENTER","Skilled Nursing Facility"]
[13054,"BRIGHTON HOUSE REHAB & NURSING CTR","Skilled Nursing Facility"]
[4850,"Broad Reach","Skilled Nursing Facility"]
[16588,"BROCKTON HEALTH CENTER","Skilled Nursing Facility"]
[10700,"Brooksby Village","Skilled Nursing Facility"]
[14386,"BROOKSIDE REHAB & HEALTHCARE CENTER","Skilled Nursing Facility"]
[9961,"BRUDNICK CENTER FOR LIVING","Skilled Nursing Facility"]
[12336,"BUCKLEY-GREENFIELD HEALTHCARE CTR","Skilled Nursing Facility"]
[11225,"CAMBRIDGE REHAB & NURSING CTR","Skilled Nursing Facility"]
[11952,"CAPE HERITAGE REHAB & HLTH CARE CTR","Skilled Nursing Facility"]
[11951,"CAPE REGENCY REHAB & HLTH CARE CTR","Skilled Nursing Facility"]
[6527,"CARE ONE AT BROOKLINE","Skilled Nursing Facility"]
[6688,"CARE ONE AT CONCORD","Skilled Nursing Facility"]
[8626,"CARE ONE AT ESSEX PARK","Skilled Nursing Facility"]
[6691,"CARE ONE AT LEXINGTON","Skilled Nursing Facility"]
[6674,"CARE ONE AT MILLBURY","Skilled Nursing Facility"]
[6693,"CARE ONE AT NEW BEDFORD","Skilled Nursing Facility"]
[6694,"CARE ONE AT NEWTON","Skilled Nursing Facility"]
[6687,"CARE ONE AT NORTHAMPTON","Skilled Nursing Facility"]
[6695,"CARE ONE AT PEABODY","Skilled Nursing Facility"]
[6696,"CARE ONE AT RANDOLPH","Skilled Nursing Facility"]
[6689,"CARE ONE AT REDSTONE","Skilled Nursing Facility"]
[6697,"CARE ONE AT WEYMOUTH","Skilled Nursing Facility"]
[6698,"CARE ONE AT WILMINGTON","Skilled Nursing Facility"]
[747,"CARLETON-WILLARD VILLAGE","Skilled Nursing Facility"]
[1156,"CARLYLE HOUSE","Skilled Nursing Facility"]
[639,"CATHOLIC MEMORIAL HOME","Skilled Nursing Facility"]
[13043,"CEDAR VIEW REHAB & HEALTHCARE CTR","Skilled Nursing Facility"]
[1290,"CENTER FOR EXT. CARE @ AMHERST","Skilled Nursing Facility"]
[1072,"CHAPIN CENTER","Skilled Nursing Facility"]
[8632,"CHARLENE MANOR EXT. CARE FAC.","Skilled Nursing Facility"]
[642,"CHELSEA JEWISH NH","Skilled Nursing Facility"]
[10687,"CHELSEA SKILLED NURSING AND REHAB","Skilled Nursing Facility"]
[19951,"Chestnut Hill Benevolent Association","Skilled Nursing Facility"]
[12438,"CHESTNUT WOODS REHAB & HEALTHCARE CTR","Skilled Nursing Facility"]
[1051,"CHRISTOPHER HOUSE OF WORCESTER","Skilled Nursing Facility"]
[925,"CLARK HOUSE N.C @FOX HILL VILLAGE","Skilled Nursing Facility"]
[6778,"CLIFTON REHABILITATIVE NURG. CTR","Skilled Nursing Facility"]
[1287,"Colonial Nsg & Rehab. Ctr.","Skilled Nursing Facility"]
[12198,"Colony Center Health & Rehab","Skilled Nursing Facility"]
[1035,"COMMONS RESIDENCE AT ORCHARD COVE","Skilled Nursing Facility"]
[7850,"CONTINUING CARE AT BROOKSBY VILLAGE","Skilled Nursing Facility"]
[1089,"COPLEY AT STOUGHTON NURG.CARE CTR","Skilled Nursing Facility"]
[12169,"COUNTRY CENTER FOR HEALTH & REHAB","Skilled Nursing Facility"]
[700,"COUNTRYSIDE HEALTH CARE OF MILFORD","Skilled Nursing Facility"]
[10689,"COURTYARD NURSING CARE CENTER","Skilled Nursing Facility"]
[13033,"Crawford Skilled Nursing And Rehabilitation Center","Skilled Nursing Facility"]
[14266,"DEXTER HOUSE HEALTHCARE","Skilled Nursing Facility"]
[1285,"DON ORIONE NURSING HOME","Skilled Nursing Facility"]
[1284,"D'YOUVILLE SENIOR CARE","Skilled Nursing Facility"]
[931,"E. LONGMEADOW SKILLED NURSING CTR","Skilled Nursing Facility"]
[959,"Eastpointe Nursing Care Center","Skilled Nursing Facility"]
[13127,"EASTPOINTE REHAB CENTER","Skilled Nursing Facility"]
[4908,"ELAINE CENTER AT HADLEY","Skilled Nursing Facility"]
[12168,"ELIOT CENTER FOR HEALTH & REHAB","Skilled Nursing Facility"]
[727,"ELIZABETH SETON RESIDENCE","Skilled Nursing Facility"]
[696,"ELLIS NURSING HOME","Skilled Nursing Facility"]
[1076,"EMERSON REHAB. & TRANS. CARE UNIT","Skilled Nursing Facility"]
[12656,"Fair Havens, Inc.","Skilled Nursing Facility"]
[10388,"FAIRHAVEN HEALTHCARE CENTER","Skilled Nursing Facility"]
[3033,"FAIRVIEW COMMONS NURG & REH. CTR","Skilled Nursing Facility"]
[14325,"FALL RIVER HEALTHCARE","Skilled Nursing Facility"]
[14489,"FARREN CARE CENTER","Skilled Nursing Facility"]
[14267,"Fitchburg Healthcare","Skilled Nursing Facility"]
[20030,"FOREMOST AT SHARON LLC","Skilled Nursing Facility"]
[13242,"GARDNER REHABILITATION & NURSING CENTER","Skilled Nursing Facility"]
[12251,"GARDNER REHABILITATION AND NSG CTR","Skilled Nursing Facility"]
[11525,"Genesis MA Holdings ","Skilled Nursing Facility"]
[701,"GERMAN CENTRE FOR EXT. CARE","Skilled Nursing Facility"]
[8958,"GGNSC Lexington","Skilled Nursing Facility"]
[12826,"GLEN RIDGE NURSING CARE CENTER","Skilled Nursing Facility"]
[9502,"GLEN RIDGE NURSING CARE CTR.","Skilled Nursing Facility"]
[14269,"Gloucester HealthCare","Skilled Nursing Facility"]
[8852,"GOLDEN LIVINGCENTER - THE HERMITAGE","Skilled Nursing Facility"]
[1073,"GOVERNORS CENTER","Skilled Nursing Facility"]
[710,"Hannah B G Shaw Home For Aged","Skilled Nursing Facility"]
[10699,"HANNAH DUSTON HEALTHCARE CTR.","Skilled Nursing Facility"]
[13001,"Harbor House Nursing & Rehab Ctr","Skilled Nursing Facility"]
[9699,"Harborside Massachusetts","Skilled Nursing Facility"]
[8616,"Hathaway Manor Extended Care","Skilled Nursing Facility"]
[9629,"HATHORNE HILL","Skilled Nursing Facility"]
[8250,"HealthBridge Management","Skilled Nursing Facility"]
[14270,"HEATHWOOD HEALTHCARE","Skilled Nursing Facility"]
[11218,"Hebrew Senior Life, Inc.","Skilled Nursing Facility"]
[9739,"HELLENIC NURSING AND REHABILITATION CENTER","Skilled Nursing Facility"]
[11516,"HERITAGE HALL EAST","Skilled Nursing Facility"]
[11537,"HERITAGE HALL NORTH","Skilled Nursing Facility"]
[11515,"HERITAGE HALL SOUTH","Skilled Nursing Facility"]
[11533,"HERITAGE HALL WEST","Skilled Nursing Facility"]
[11503,"HERITAGE MANOR","Skilled Nursing Facility"]
[12622,"HIGHVIEW OF NORTHAMPTON","Skilled Nursing Facility"]
[3032,"HILLCREST COMMONS NURS & REH. CTR","Skilled Nursing Facility"]
[654,"HOLDEN REHAB & SKILLED NURSING CTR","Skilled Nursing Facility"]
[1032,"HOLY TRINITY EASTERN ORTHODOX NURSING AND REHAB. CENTER","Skilled Nursing Facility"]
[12343,"HOLYOKE HEALTHCARE CENTER","Skilled Nursing Facility"]
[930,"HUNT NURSING AND REHABILITATION CENTER","Skilled Nursing Facility"]
[11908,"Jesmond Nursing Home","Skilled Nursing Facility"]
[737,"JEWISH HEALTHCARE CENTER","Skilled Nursing Facility"]
[953,"JEWISH NH OF WESTERN MASS","Skilled Nursing Facility"]
[1097,"JML CARE CENTER","Skilled Nursing Facility"]
[12344,"JOHN ADAMS HEALTHCARE CENTER","Skilled Nursing Facility"]
[13002,"JOHN SCOTT HOUSE NURSING & REHAB CENTER","Skilled Nursing Facility"]
[658,"JOHN SCOTT NURSING AND REHAB.","Skilled Nursing Facility"]
[13010,"KATHLEEN DANIEL NURSING & REHAB","Skilled Nursing Facility"]
[11482,"KEYSTONE CENTER","Skilled Nursing Facility"]
[4876,"KIMBALL FARMS NURSING CARE CENTER","Skilled Nursing Facility"]
[8824,"KINDRED NURSING & REH-BRAINTREE","Skilled Nursing Facility"]
[8833,"KINDRED NURSING & REH-HARBORLIGHTS","Skilled Nursing Facility"]
[8831,"KINDRED NURSING & REH-TOWER HILL","Skilled Nursing Facility"]
[4249,"Kindred Nursing and Rehabilitation - Great Barrington","Skilled Nursing Facility"]
[4221,"KINDRED TRANS CARE & REH-BLUEBERRY HILL","Skilled Nursing Facility"]
[8828,"KINDRED TRANS CARE & REH-COUNTRY ESTATES","Skilled Nursing Facility"]
[4230,"KINDRED TRANS CARE & REH-WESTBOROUGH","Skilled Nursing Facility"]
[938,"KNOLLWOOD NURSING CENTER","Skilled Nursing Facility"]
[10389,"LAFAYETTE SKILLED REHAB AND NURSING CTR","Skilled Nursing Facility"]
[12529,"LANESSA EXTENDED CARE","Skilled Nursing Facility"]
[4877,"LASELL HOUSE","Skilled Nursing Facility"]
[8821,"LAUREL LAKE CTR FOR HEALTH & REH.","Skilled Nursing Facility"]
[12210,"Laurel Ridge Rehab & Skilled Care Ctr","Skilled Nursing Facility"]
[4262,"LEDGEWOOD REHAB & SKILLED NC","Skilled Nursing Facility"]
[14328,"LEE HEALTHCARE","Skilled Nursing Facility"]
[1101,"LIBERTY COMMONS NURG & REH.CTR","Skilled Nursing Facility"]
[2886,"LIFE CARE CENTER OF ACTON","Skilled Nursing Facility"]
[966,"LIFE CARE CENTER OF ATTLEBORO","Skilled Nursing Facility"]
[1040,"LIFE CARE CENTER OF AUBURN","Skilled Nursing Facility"]
[8662,"LIFE CARE CENTER OF LEOMINSTER","Skilled Nursing Facility"]
[926,"LIFE CARE CENTER OF LYNN","Skilled Nursing Facility"]
[1111,"Life Care Center Of Merrimack Valley","Skilled Nursing Facility"]
[12828,"LIFE CARE CENTER OF MERRIMACK VALLEY","Skilled Nursing Facility"]
[1124,"Life Care Center Of Nashoba Valley","Skilled Nursing Facility"]
[1049,"LIFE CARE CENTER OF PLYMOUTH","Skilled Nursing Facility"]
[1041,"LIFE CARE CENTER OF RAYNHAM","Skilled Nursing Facility"]
[1167,"LIFE CARE CENTER OF STONEHAM","Skilled Nursing Facility"]
[12616,"LIFE CARE CENTER OF THE SOUTH SHORE","Skilled Nursing Facility"]
[1094,"LIFE CARE CENTER OF W. BRIDGEWATER","Skilled Nursing Facility"]
[942,"LIFE CARE CENTER OF WILBRAHAM - LTC Facility","Skilled Nursing Facility"]
[1057,"LIGHTHOUSE NURSING CARE CENTER","Skilled Nursing Facility"]
[8631,"LINDA MANOR EXTENDED CARE FAC","Skilled Nursing Facility"]
[10777,"LINDEN PONDS","Skilled Nursing Facility"]
[12356,"LONGMEADOW OF TAUNTON","Skilled Nursing Facility"]
[751,"LOOMIS HOUSE","Skilled Nursing Facility"]
[10716,"LOOMIS LAKESIDE AT REEDS LANDING","Skilled Nursing Facility"]
[11903,"LUTHERAN REHAB & SKILLED CARE CTR","Skilled Nursing Facility"]
[949,"LYDIA TAFT HOUSE","Skilled Nursing Facility"]
[893,"MADONNA MANOR NURSING HOME","Skilled Nursing Facility"]
[12550,"MAPLES REHABILITATION & NURSING CENTER","Skilled Nursing Facility"]
[13133,"MAPLEWOOD MAYFLOWER PLACE SNF L","Skilled Nursing Facility"]
[14492,"MAPLEWOOD REHAB & NURSING","Skilled Nursing Facility"]
[661,"MARIAN MANOR","Skilled Nursing Facility"]
[740,"MARIAN MANOR OF TAUNTON","Skilled Nursing Facility"]
[1006,"MARIE ESTHER HEALTH CTR.","Skilled Nursing Facility"]
[1131,"MARISTHILL NURSING & REHAB CTR","Skilled Nursing Facility"]
[8032,"MARLBOROUGH HILLS HLTHCARE CTR","Skilled Nursing Facility"]
[12530,"MARLBOROUGH HILLS REHAB & HEALTH CARE CTR","Skilled Nursing Facility"]
[955,"MARY ANN MORSE NURS. & REHAB. CTR.","Skilled Nursing Facility"]
[10849,"MARY'S MEADOW AT PROVIDENCE PLACE","Skilled Nursing Facility"]
[10697,"MASCONOMET HEALTHCARE CENTER","Skilled Nursing Facility"]
[889,"Masonic Nursing Home","Skilled Nursing Facility"]
[16591,"MATTAPAN HEALTH & REHAB CTR","Skilled Nursing Facility"]
[849,"MEADOW GREEN NSG AND REHAB CTR","Skilled Nursing Facility"]
[11885,"Medford Rehabilitation & Nursing Center","Skilled Nursing Facility"]
[712,"MEDWAY COUNTRY MANOR SK NURG &REH","Skilled Nursing Facility"]
[12420,"MERRIMACK VALLEY HEALTH CENTER","Skilled Nursing Facility"]
[1279,"MI NURSING RESTORATIVE CTR","Skilled Nursing Facility"]
[4903,"Milford Center","Skilled Nursing Facility"]
[9984,"Milton Health Care Fac SNF","Skilled Nursing Facility"]
[12586,"MONT MARIE REHAB & HEALTHCARE CTR.","Skilled Nursing Facility"]
[10781,"MOUNT GREYLOCK EXT. CARE FAC.","Skilled Nursing Facility"]
[1187,"MOUNT SAINT VINCENT CARE CENTER","Skilled Nursing Facility"]
[10696,"NEMASKET HEALTHCARE CENTER","Skilled Nursing Facility"]
[4267,"NEVILLE CTR.@ FRESH POND FOR NURSING & REHABILITATION","Skilled Nursing Facility"]
[757,"NEVINS NURSING & REHAB. CENTER","Skilled Nursing Facility"]
[8078,"New England Homes For The Deaf","Skilled Nursing Facility"]
[1182,"NEW ENGLAND PEDIATRIC CARE","Skilled Nursing Facility"]
[10877,"NEWBRIDGE ON THE CHARLES SKILLED NURSING FAC","Skilled Nursing Facility"]
[12177,"NEWTON WELLESLEY CTR FOR ALZHEIMER'S CARE","Skilled Nursing Facility"]
[14334,"Next Step Healthcare LLC","Skilled Nursing Facility"]
[3034,"NORTH ADAMS COMMONS NRG.&.REH.CTR","Skilled Nursing Facility"]
[14372,"NORTH END REHABILITATION AND HEALTH CARE CENTER","Skilled Nursing Facility"]
[797,"NORTH HILL - THE S.N.F.","Skilled Nursing Facility"]
[11955,"NORTHWOOD REHAB & HLTH CARE CTR","Skilled Nursing Facility"]
[14272,"Norwood HealthCare","Skilled Nursing Facility"]
[978,"NOTRE DAME HEALTH CARE CENTER","Skilled Nursing Facility"]
[10706,"OAK KNOLL HEALTHCARE CENTER","Skilled Nursing Facility"]
[804,"OAKDALE REHAB. & SKILLED NURS.CTR","Skilled Nursing Facility"]
[1276,"ODD FELLOWS HOME OF MASS","Skilled Nursing Facility"]
[748,"Our Island Home","Skilled Nursing Facility"]
[666,"OUR LADY'S HAVEN","Skilled Nursing Facility"]
[10803,"Overlook Health Ctr At Northampton","Skilled Nursing Facility"]
[11517,"PALM MANOR","Skilled Nursing Facility"]
[6751,"PALMER HEALTHCARE CENTER","Skilled Nursing Facility"]
[12436,"PARK AVENUE HEALTH CENTER","Skilled Nursing Facility"]
[12422,"Park Place Rehab & Skilled Care Ctr","Skilled Nursing Facility"]
[16590,"Parkway Health and Rehabilitation Center","Skilled Nursing Facility"]
[12532,"PARSONS HILL REHAB & HEALTH CARE CTR.","Skilled Nursing Facility"]
[678,"PENACOOK PLACE","Skilled Nursing Facility"]
[932,"PILGRIM REH & SKIL NURS CTR","Skilled Nursing Facility"]
[2651,"Pine Knoll Nursing Center","Skilled Nursing Facility"]
[4880,"PLEASANT BAY NURSING & REH. CTR","Skilled Nursing Facility"]
[11950,"PLYMOUTH REHAB & HLTH CARE CTR","Skilled Nursing Facility"]
[8574,"POET'S SEAT HEALTH CARE CENTER","Skilled Nursing Facility"]
[758,"PORT HEALTHCARE CENTER","Skilled Nursing Facility"]
[11524,"PRESCOTT HOUSE","Skilled Nursing Facility"]
[12212,"Presentation Rehab & Skilled Care Ctr","Skilled Nursing Facility"]
[16592,"PRESENTATION REHABILITATION & SKILLED CARE CTR","Skilled Nursing Facility"]
[803,"QUABBIN VALLEY HEALTHCARE","Skilled Nursing Facility"]
[11504,"QUABOAG REHABILITATION & SKILLED CARE CTR","Skilled Nursing Facility"]
[852,"QUEEN ANNE NURSING HOME","Skilled Nursing Facility"]
[13240,"QUINCY HEALTH & REHABILITATION CENTER","Skilled Nursing Facility"]
[5054,"RECUPERATIVE SERVICES UNIT","Skilled Nursing Facility"]
[12023,"REHAB & NURSING CTR AT EVERETT","Skilled Nursing Facility"]
[6753,"RENAISSANCE MANOR ON CABOT","Skilled Nursing Facility"]
[12167,"RESERVOIR CENTER FOR HEALTH & REHAB","Skilled Nursing Facility"]
[18828,"REVOLUTION AT CHARLWELL","Skilled Nursing Facility"]
[18827,"Revolution at Kimwell","Skilled Nursing Facility"]
[12434,"River Terrace Rehab & Healthcare Ctr","Skilled Nursing Facility"]
[836,"RIVERBEND OF SOUTH NATICK","Skilled Nursing Facility"]
[673,"RIVERCREST L.T.C.F.","Skilled Nursing Facility"]
[8602,"ROSCOMMON ON THE PARKWAY","Skilled Nursing Facility"]
[1397,"Rosewood Manor","Skilled Nursing Facility"]
[10337,"ROYAL BRAINTREE NRSG & REHAB CENTER","Skilled Nursing Facility"]
[4234,"Royal Cape Cod Nursing And Rehab Ctr","Skilled Nursing Facility"]
[1160,"ROYAL MEGANSETT NRG & RET. HOME","Skilled Nursing Facility"]
[12372,"ROYAL NORWELL NURSING & REHAB CTR","Skilled Nursing Facility"]
[2786,"ROYAL NURSING CENTER","Skilled Nursing Facility"]
[12507,"Royal of Cotuit Nursing and Rehab Center","Skilled Nursing Facility"]
[9641,"Royal Of Fairhaven Nursing Ctr","Skilled Nursing Facility"]
[13217,"Royal Sandalwood Center","Skilled Nursing Facility"]
[12197,"SACHEM CENTER FOR HEALTH & REHAB","Skilled Nursing Facility"]
[10465,"Saint Francis Rehab & Nursing Center","Skilled Nursing Facility"]
[8331,"Salem Community Corp.","Skilled Nursing Facility"]
[18785,"Salem Rehab Center LLC","Skilled Nursing Facility"]
[928,"Sancta Maria Nursing Home","Skilled Nursing Facility"]
[11512,"SARAH S. BRAYTON NURSING CARE CENTER","Skilled Nursing Facility"]
[9630,"SAUGUS CENTER","Skilled Nursing Facility"]
[14493,"SAUGUS REHAB AND NURSING","Skilled Nursing Facility"]
[11627,"Savoy Nursing & Rehab Center","Skilled Nursing Facility"]
[4284,"SEA VIEW CONV & NURSING HOME","Skilled Nursing Facility"]
[971,"SEACOAST NURSING & REHABILITATION CTR.","Skilled Nursing Facility"]
[8973,"Senior Residential Care / South Hadley, LLC","Skilled Nursing Facility"]
[2807,"Serenity Hill Nursing & Reh. Ctr","Skilled Nursing Facility"]
[675,"SHERRILL HOUSE","Skilled Nursing Facility"]
[689,"Shrewsbury Nursing & Rehab.Ctr","Skilled Nursing Facility"]
[10695,"SIPPICAN HEALTHCARE CENTER","Skilled Nursing Facility"]
[999907,"Skilled Nursing Facilities","Skilled Nursing Facility"]
[11481,"SOMERSET RIDGE","Skilled Nursing Facility"]
[12432,"SOUTH COVE MANOR NURSING & REHAB CTR","Skilled Nursing Facility"]
[14324,"SOUTH DENNIS HEALTHCARE","Skilled Nursing Facility"]
[6754,"SOUTH SHORE REH.& SKILLED CARE CTR","Skilled Nursing Facility"]
[11954,"SOUTHBRIDGE REHAB & HLTH CARE CTR","Skilled Nursing Facility"]
[11269,"SOUTHEAST HEALTH CARE CENTER","Skilled Nursing Facility"]
[13129,"SOUTHPOINTE REHAB CENTER","Skilled Nursing Facility"]
[11268,"SOUTHSHORE HEALTH CARE CENTER","Skilled Nursing Facility"]
[987,"SOUTHWOOD AT NORWELL NURSING CTR","Skilled Nursing Facility"]
[6333,"SPAULDING NSG & THERAPY CTR-WEST ROXBURY","Skilled Nursing Facility"]
[4888,"Spring Valley Care And Rehab Center","Skilled Nursing Facility"]
[12421,"SPRINGSIDE REHAB & SKILLED CARE CENTER","Skilled Nursing Facility"]
[4285,"ST. CAMILLUS HEALTH CENTER","Skilled Nursing Facility"]
[9503,"St. Joseph Rehabilitation And Nursing Care Center","Skilled Nursing Facility"]
[676,"ST. JOSEPH'S MANOR HEALTH CARE","Skilled Nursing Facility"]
[1207,"ST. MARY HEALTH CARE","Skilled Nursing Facility"]
[1272,"ST. PATRICK'S MANOR","Skilled Nursing Facility"]
[9676,"Stavros Center for Independent Living, Inc.","Skilled Nursing Facility"]
[10885,"Sterling Village  ","Skilled Nursing Facility"]
[1078,"STONE REHAB & SENIOR LIVING","Skilled Nursing Facility"]
[11272,"Stonehedge Health Care Center","Skilled Nursing Facility"]
[12874,"Sunbridge Healthcare, LLC","Skilled Nursing Facility"]
[1270,"SUNNY ACRES NURSING HOME","Skilled Nursing Facility"]
[11542,"SUTTON HILL CENTER","Skilled Nursing Facility"]
[8340,"The Barbara McInnis House Medical Respite Care Program","Skilled Nursing Facility"]
[8445,"The Bostonian N.C And Reh. Ctr","Skilled Nursing Facility"]
[1263,"THE GUARDIAN CENTER","Skilled Nursing Facility"]
[8663,"THE HIGHLANDS","Skilled Nursing Facility"]
[1136,"THE MEADOWS","Skilled Nursing Facility"]
[12234,"The Meadows of Central Massachusetts","Skilled Nursing Facility"]
[6790,"THE OAKS","Skilled Nursing Facility"]
[12528,"THE OXFORD REHAB & HEALTH CARE CENTER","Skilled Nursing Facility"]
[9501,"THE PAVILION","Skilled Nursing Facility"]
[12270,"TREMONT HEALTH CARE CENTER","Skilled Nursing Facility"]
[11270,"TREMONT HEALTH CARE CENTER","Skilled Nursing Facility"]
[12600,"VERO HEALTH & REHAB - Parkway","Skilled Nursing Facility"]
[18791,"VERO HEALTH & REHAB OF HAMPDEN","Skilled Nursing Facility"]
[12592,"VERO HEALTH & REHAB OF MATTAPAN","Skilled Nursing Facility"]
[18794,"VERO HEALTH & REHAB OF SOUTH HADLEY","Skilled Nursing Facility"]
[12602,"VERO HEALTH & REHAB OF WEST ROXBURY","Skilled Nursing Facility"]
[18793,"VERO HEALTH & REHAB OF WILBRAHAM","Skilled Nursing Facility"]
[12598,"VERO HEALTH XVI LLC DBA VERO HE","Skilled Nursing Facility"]
[12186,"VK MARLBOROUGH LLC DBA","Skilled Nursing Facility"]
[9389,"VNA Care Hospice","Skilled Nursing Facility"]
[12426,"WABAN HEALTH CENTER","Skilled Nursing Facility"]
[11501,"WACHUSETT MANOR","Skilled Nursing Facility"]
[9626,"WAKEFIELD CENTER","Skilled Nursing Facility"]
[14326,"WALPOLE HEALTHCARE","Skilled Nursing Facility"]
[12425,"WATERTOWN HEALTH CENTER","Skilled Nursing Facility"]
[12527,"WEBSTER MANOR REHAB & HEALTH CARE CTR.","Skilled Nursing Facility"]
[12349,"WEBSTER PARK REHAB & HEALTHCARE CTR.","Skilled Nursing Facility"]
[2984,"West Acres Nsg Home & Rehab Ctr","Skilled Nursing Facility"]
[14277,"West Newton Healthcare","Skilled Nursing Facility"]
[12762,"WEST REVERE HEALTH CENTER","Skilled Nursing Facility"]
[16589,"WEST ROXBURY HEALTH & REHAB CTR","Skilled Nursing Facility"]
[14330,"WESTBOROUGH HEALTHCARE","Skilled Nursing Facility"]
[9625,"WESTFIELD CENTER","Skilled Nursing Facility"]
[12827,"WESTFIELD GARDENS NURSING & REHAB","Skilled Nursing Facility"]
[11544,"WESTFORD HOUSE","Skilled Nursing Facility"]
[3035,"WILLIAMSTOWN COMMONS N&R CTR","Skilled Nursing Facility"]
[1074,"WILLIMANSETT CENTER EAST","Skilled Nursing Facility"]
[1075,"WILLIMANSETT CENTER WEST","Skilled Nursing Facility"]
[11534,"WILLOW MANOR","Skilled Nursing Facility"]
[742,"WINCHESTER NURSING CENTER","Skilled Nursing Facility"]
[933,"WINDSOR NSG & RET. HOME","Skilled Nursing Facility"]
[8800,"WINGATE AT ANDOVER","Skilled Nursing Facility"]
[6345,"WINGATE AT BELVIDERE","Skilled Nursing Facility"]
[12931,"WINGATE AT CHESTNUT HILL","Skilled Nursing Facility"]
[8784,"WINGATE AT EAST LONGMEADOW","Skilled Nursing Facility"]
[8782,"WINGATE AT HAMPDEN","Skilled Nursing Facility"]
[12930,"WINGATE AT HARWICH","Skilled Nursing Facility"]
[8913,"WINGATE AT HAVERHILL","Skilled Nursing Facility"]
[8804,"WINGATE AT NEEDHAM","Skilled Nursing Facility"]
[12934,"WINGATE AT NORTON","Skilled Nursing Facility"]
[8803,"WINGATE AT READING","Skilled Nursing Facility"]
[8927,"Wingate at Reading, Inc.","Skilled Nursing Facility"]
[12932,"WINGATE AT SHARON","Skilled Nursing Facility"]
[5055,"WINGATE AT SILVER LAKE","Skilled Nursing Facility"]
[8575,"WINGATE AT SO.HADLEY","Skilled Nursing Facility"]
[8783,"WINGATE AT SPRINGFIELD","Skilled Nursing Facility"]
[8802,"WINGATE AT SUDBURY","Skilled Nursing Facility"]
[8785,"WINGATE AT WEST SPRINGFIELD","Skilled Nursing Facility"]
[12936,"Wingate at Weston","Skilled Nursing Facility"]
[8801,"WINGATE AT WILBRAHAM","Skilled Nursing Facility"]
[4985,"WINGATE AT WORCESTER","Skilled Nursing Facility"]
[684,"WOBURN NURSING CENTER","Skilled Nursing Facility"]
[972,"WOODBRIAR OF WILMINGTON REHAB & SKILLED NURSING CENTER","Skilled Nursing Facility"]
[12419,"WORCESTER HEALTH CENTER","Skilled Nursing Facility"]
[11953,"WORCESTER REHAB & HLTH CARE CTR","Skilled Nursing Facility"]

{"sheet":"Reference Tables","index":4,"n_rows":35,"n_cols":3,"rows_kept":35,"cut":false,"hidden":false,"merged":[]}
["Relative Price Submission"]
["Reference Tables"]
[]
[]
[null,"Table D.1 - Hospital Types"]
[null,"Hospital Type Code","Description"]
[null,1,"Acute Hospital"]
[null,2,"Psychiatric or Substance Abuse Hospital or Acute Hospital Behavioral Health only"]
[null,3,"Chronic Hospital"]
[null,4,"Rehabilitation Hospital"]
[]
[]
[null,"Table D.2 - Insurance Categories"]
[null,"Insurance Category Code ","Description"]
[null,1,"Medicare Advantage"]
[null,2,"Medicaid MCO/ACO-A"]
[null,3,"Commercial (self and fully insured)"]
[null,4,"SCO"]
[null,5,"OneCare"]
[null,6,"Other"]
[]
[]
[null,"Table D.3 - Product Types"]
[null,"Product Type Code","Description"]
[null,1,"HMO and POS"]
[null,2,"PPO"]
[null,3,"Indemnity"]
[null,4,"Other"]
[]
[]
[null,"Table D.4 - Multiplier Indicators"]
[null,"Service Multiplier Indicator","Description"]
[null,1,"Negotiated multiplier (not calculated)"]
[null,2,"Calculated payment-derived multiplier"]
[null,3,"Standard per unit rate "]

{"sheet":"Multiplier Review","index":5,"n_rows":4,"n_cols":10,"rows_kept":4,"cut":false,"hidden":false,"merged":[]}
["Please review the Range of Multipliers reported for each Service"]
[]
["Table F.1: Multiplier Summary"]
["OtherProviderType","InsuranceCategoryCode","ProductTypeCode","Service","Min of Multiplier","Max of Multiplier","Average of Multiplier","Min of Total Payments","Max of Total Payments","Average of Total Payments"]

{"sheet":"Payments Review","index":6,"n_rows":4,"n_cols":7,"rows_kept":4,"cut":false,"hidden":false,"merged":[]}
["Please review the Total Payments reported for each Other Provider Group"]
[]
["Table E.1: Payment Summary"]
["ProviderGroupOrgID","LocalPracticeOrgID","InsuranceCategoryCode","ProductTypeCode","Sum of ClaimsPayments","Sum of NonClaimsPayments","Sum of Total Payments"]

{"sheet":"Service Review","index":7,"n_rows":4,"n_cols":7,"rows_kept":4,"cut":false,"hidden":false,"merged":[]}
["Please review the Services reported for each Other Provider Group"]
[]
["Table G.1: Service Group Summary"]
["ProviderGroupOrgID","LocalPracticeOrgID","InsuranceCategoryCode","ProductTypeCode","Service","Count of Multiplier","Data Review"]

{"sheet":"Payers","index":8,"n_rows":19,"n_cols":3,"rows_kept":19,"cut":false,"hidden":true,"merged":[]}
["OrgID","Payer Name","ShortName"]
[null,"Select Payer:","Select Payer:"]
[290,"Aetna Health Inc. (PA) - Aetna Life Ins. Co. (ALIC)","Aetna"]
[291,"Blue Cross Blue Shield of Massachusetts","BCBS"]
[296,"Fallon Community Health Plan","Fallon"]
[300,"Harvard Pilgrim Health Care","HPHC"]
[301,"Health New England, Inc.","HNE"]
[308,"Tufts Associated Health Maintenance Organization, Inc.","THP"]
[310,"UniCare Life and Health Insurance Company","Unicare"]
[312,"United Healthcare Insurance Company","United"]
[3156,"MassHealth","MassHealth"]
[3735,"AllWays Health Partners, Inc.","Allways"]
[12103,"Tufts Medicare Advantage","TuftsMedicare"]
[10728,"Commonwealth Care Alliance","CCA"]
[10926,"United Healthcare Insurance Company - Medicare Advantage","UnitedMedicare"]
[11226,"BMC HealthNet Plan, Inc. (Medicaid MCO)","BMCHP"]
[11227,"Network Health, LLC  (Medicaid MCO)","THPP"]
[11474,"CIGNA Health and Life Insurance Company (CHLIC)","Cigna"]
[12814,"United Healthcare Insurance - Medicare & Retirement (SCO)","UnitedSCO"]

{"sheet":"System Data","index":9,"n_rows":38,"n_cols":4,"rows_kept":38,"cut":false,"hidden":true,"merged":[]}
[true,"OnSaveFlag",{"$f":"ROWS(_xlfn._xlws.FILTER('Other Provider List'!A:B,('Other Provider List'!A:A<>\"\")+('Other Provider List'!B:B<>\"\")))","v":1071},"Org Count"]
[1,"iPayer",{"$f":"ROWS(_xlfn._xlws.FILTER('Other Provider Data'!A:J,('Other Provider Data'!A:A<>\"\")+('Other Provider Data'!B:B<>\"\")+('Other Provider Data'!C:C<>\"\")+('Other Provider Data'!D:D<>\"\")+('Other Provider Data'!E:E<>\"\")+('Other Provider Data'!F:F<>\"\")+('Other Provider Data'!G:G<>\"\")+('Other Provider Data'!H:H<>\"\")+('Other Provider Data'!I:I<>\"\")))+1","v":2},"Data Count"]
[{"$f":"A4&\"_\"&A5&\"_\"&A6&\"_\"&A7&\"_\"&A8&\".xlsm\"","v":"0_Select Payer:_0_116_PG.xlsm"},"vFileName"]
[{"$f":"IF(ISBLANK(iPayer),\"\",INDEX(PayersList,iPayer,1))","v":0},"vPayerOrgID"]
[{"$f":"IF(ISBLANK(iPayer),\"\",INDEX(PayersList,iPayer,3))","v":"Select Payer:"},"vPayerShortName"]
[{"$f":"'Front Page'!C12","v":0},"vYear"]
[116,"FilingTypeID"]
["PG","TemplateType"]
[]
[]
[]
[]
[]
[]
[]
[]
[]
[{"$f":"IF(AND(A19=TRUE,A34=TRUE),TRUE,FALSE)","v":false},"cfAllFrontPageRequriedFields"]
[{"$f":"IF(AND(A20=TRUE,A21=TRUE,A23=TRUE,A24=TRUE,A25=TRUE,A26),TRUE,FALSE)","v":false},"A. FrontPage WorkSheet"]
[{"$f":"IF('Front Page'!B6=\"\",  FALSE, TRUE)","v":false},"vContactName"]
[{"$f":"IF(OR('Front Page'!B7=\"\",'Front Page'!C7=\"ERROR: Please enter a valid email address\"),FALSE,TRUE)","v":false},"vContactEmail"]
[null,"cfFrontPageTableA1RequiredFields"]
[{"$f":"IF(OR('Front Page'!C10=\"\",'Front Page'!C10=0),FALSE,TRUE)","v":false},"vPayerOrgID"]
[{"$f":"IF(OR('Front Page'!C11=\"\",'Front Page'!C11=\"Select Payer:\"),FALSE,TRUE)","v":false},"vPayerName"]
[{"$f":"IF('Front Page'!C12=\"\", FALSE,TRUE)","v":false},"vSubmissionYear"]
[{"$f":"IF('Front Page'!C13=\"\", FALSE,TRUE)","v":false},"vDataYear"]
[]
[]
[{"$f":"IF(AND(A30=TRUE,A31=TRUE),TRUE,FALSE)","v":false},"cfFrontPageTableA2RequiredFields"]
[{"$f":"IF(ISNUMBER(SEARCH(\"All entered data is valid\",'Front Page'!C19)), TRUE,FALSE)","v":false},"vPhysicianGroupDataTab"]
[{"$f":"IF(ISNUMBER(SEARCH(\"All entered data is valid\",'Front Page'!C20)), TRUE,FALSE)","v":false},"vServiceReviewTab"]
[]
[]
[{"$f":"IF(AND(A35=TRUE,A36=TRUE,A37=TRUE,A38=TRUE),TRUE,FALSE)","v":false},"cfFrontPageTableA3RequiredFields"]
[{"$f":"IF('Front Page'!C25=\"\", FALSE,TRUE)","v":false},"vAcknowledgeReviewedOther ProviderDataTab"]
[{"$f":"IF('Front Page'!C26=\"\",FALSE,TRUE)","v":false},"vAcknowledgeReviewedPaymentsReviewTab"]
[{"$f":"IF('Front Page'!C27=\"\",FALSE,TRUE)","v":false},"vAcknowledgeReviewedMultiplierReviewTab"]
[{"$f":"IF('Front Page'!C28=\"\",FALSE,TRUE)","v":false},"vAcknowledgeReviewedServiceReviewTab"]